Workbook

Sheet Admin (hidden)
E1: Admin
C3: =5/0 -> 
E5: Worksheet Protection On (Yes/No) | F5: Yes
E7: Tab name | F7: Tab Hidden? | G7: Super Hidden? | H7: Hide Rows?
E8: Admin | F8: X | G8: X
E9: Instructions | H9: X
E10: Project Information | H10: X
E11: Guidelines Checklist | H11: X
E12: Results from eQuest | F12: X
E13: Results from EnergyPlus | F13: X
E14: Compliance Calculations | H14: X
E15: Quality Control Checks | H15: X | K15: Release checklist
E16: Submittal Checklist | H16: X | K16: 1. Manually revise version # and release date on the Instructions tab
E17: Reference | F17: X | G17: X | K17: 2. Update Revision Log
E18: Ref_Instructions | F18: X | G18: X | K18: 3. Turn worksheet protection in cell F4 to "Yes"
E19: Revision Log | K19: 4. Run macro to Protect All Sheets
K20: 5. Run macro to Protect Workbook
K21: 6. Run macro to Hide Rows for Publishing
K22: 7. Run macro to Hide Sheets for Publishing

Sheet Instructions
E1: Instructions
C3: =5/0 -> 
E4: Version 1.1, Published 12/9/2024
E6: Table of Contents
E7: =Instructions_GI_Header -> General Information
E8: =Instructions_How_To_Header -> How to use the TEDI Compliance Tool
E9: =Instructions_Productivity_Tips_Header -> Productivity Tips
E10: =Instructions_Cell_and_Font_Color_Legend_Header -> Cell and Font Color Legend
E11: =Instructions_Tab_Color_Legend_Header -> Tab Color Legend
E12: =Instructions_Acronyms_and_Abbreviations_Header -> Acronyms and Abbreviations
E13: =Instructions_Reference_Documents_Header -> Reference Documents
E15: General Information
E16: 1. This TEDI Compliance Tool may be used to document compliance with Massachusetts Stretch Energy Code C407.1 Targeted Performance. 2. This tool is designed to assist energy modelers in developing the energy model in accordance with Attachment C and documenting compliance. The Project Information tab should be completed prior to energy modeling to understand how to model and report different building area types.
E17: 3. If you have any questions or comments regarding the TEDI Compliance Tool, please contact stretchcode@mass.gov.
E18: How to use the TEDI Compliance Tool
E19: Step 1: Enable macros In order for the form to function correctly, when prompted with a Security Warning, enable macros by clicking Enable Content. This tool is for use with Excel 2016 or later.
E20: Step 2: Complete Project Information tab 1. Complete the Project Information tab before any other tabs as selections on this tab will trigger or hide project-specific information and tabs.
E21: Step 3: Review the Guidelines Checklist tab 1. Review the Guidelines Checklist tab before and during energy modeling. This tab is designed to help ensure that the energy model is created following the Appendix C: Targeted Performance Simulation Guidelines.
E22: Step 4: Transfer simulation outputs into the Compliance Calculations tab 1. Report the annual heating and cooling output of all systems in the building that maintain space temperature setpoints in Tables 1 and 2 on the Compliance Calculations tab. 2. To perform automated quality control checks, the simulation results may be transferred from the Building Energy Modeling (BEM) tool into the TEDI Compliance Tool by copying the standard reports generated by the BEM tool into the appropriate tab of the TEDI Compliance Tool. The appropriate tab (e.g. "Results from eQUEST" or "Results from EnergyPlus") will automatically become visible when the software tool is selected on the Project Information tab, and includes tool-specific instructions. 2. On projects that used BEM tools which have not been pre-approved (i.e. not eQUEST or EnergyPlus), the simulation results must be manually entered on the Compliance Calculations tab. Although IESVE 2021.4.0.0+ is a pre-approved program, results from IESVE will need to be manually reported on the Compliance Calculations tab.
E23: Step 5: Review Quality Control Checks tab Review and address all items that are flagged. Modify inputs in the TEDI Compliance Tool and/or the models as appropriate to address the flagged issues.
E24: Step 6: Fill out Submittal Checklist tab Fill out the Submittal Checklist tab and ensure that all necessary project materials along with this TEDI Compliance Tool are included in the package submitted to the jurisdiction for review. Step 7: Generate Summary TEDI Compliance Report Information entered in the TEDI Compliance Tool can be used to automatically generate a PDF report with high-level compliance information. The button and instructions for generating the summary compliance report are located on the Submittal Checklist tab.
E25: Productivity Tips
E26: 1. It is recommended for users to save the TEDI Compliance Tool often and to not use auto-recovered versions of the workbook. 2. Help buttons are present throughout this tool to assist the user. If you are unsure of the meaning or intent of something, look for this button:
E27: Cell and Font Color Legend
E28: Tab headings
E29: Table headings
E30: Auto-populated cell, not editable.
E31: Editable cell requiring an input (unless otherwise noted).
E32: Auto-populated editable cell in which text has not been overridden.
E33: Auto-populated editable cell in which overridden text is shown as bold orange.
E34: Tab Color Legend
E35: Informative tabs
E36: Tabs with modeler inputs related to the energy model
E37: Tabs with simulation tool outputs and results
E38: Tabs with checklists and quality control features
E39: Acronyms and Abbreviations
E40: =AA44 -> AHJ | F40: =AB44 -> Authority having jurisdiction | K40: =AA55 -> HVAC | L40: =AB55 -> Heating, ventilation, and air conditioning | Q40: =AA66 -> W | R40: =AB66 -> Watt
E41: =AA45 -> BEM | F41: Building energy modeling | K41: =AA56 -> HW | L41: Hot water | Q41: =AA67 -> WB | R41: Wet-bulb
E42: =AA46 -> bhp | F42: Break horsepower | K42: =AA57 -> Misc. | L42: Miscellaneous
E43: =AA47 -> CFM | F43: Cubic feet per minute | K43: =AA58 -> NFRC | L43: National Fenestration Rating Council
E44: =AA48 -> CHW | F44: Chilled water | K44: =AA59 -> OA | L44: Outdoor air | AA44: AHJ | AB44: Authority having jurisdiction
E45: =AA49 -> COP | F45: Coefficient of performance | K45: =AA60 -> PD | L45: Pressure drop | AA45: BEM | AB45: Building energy modeling
E46: =AA50 -> CRRC | F46: Cool Roof Rating Council | K46: =AA61 -> PV | L46: Photovoltaics | AA46: bhp | AB46: Break horsepower
E47: =AA51 -> DB | F47: Dry-bulb | K47: =AA62 -> sf | L47: Square feet | AA47: CFM | AB47: Cubic feet per minute
E48: =AA52 -> DOAS | F48: Direct outside air system | K48: =AA63 -> SHGC | L48: Solar heat gain coefficient | AA48: CHW | AB48: Chilled water
E49: =AA53 -> EFLH | F49: Equivalent full load hours | K49: =AA64 -> TEDI | L49: Thermal Energy Demand Intensity | AA49: COP | AB49: Coefficient of performance
E50: =AA54 -> EUI | F50: Energy Use Intensity | K50: =AA65 -> VT | L50: Visible transmittance | AA50: CRRC | AB50: Cool Roof Rating Council
E51: Reference Documents | AA51: DB | AB51: Dry-bulb
E52: Massachusetts Stretch Energy Code - 2023 Commercial amendments to IECC 2021 | AA52: DOAS | AB52: Direct outside air system
E53: TEDI Schedule and Loads Guidelines Supplement | AA53: EFLH | AB53: Equivalent full load hours
E54: Massachusetts Stretch Energy Codes 2023 Technical Guidance Document | AA54: EUI | AB54: Energy Use Intensity
E55: Attachment C: Targeted Performance Simulation Guidelines | AA55: HVAC | AB55: Heating, ventilation, and air conditioning
E56: Attachment A: Envelope Performance and Thermal Bridging | AA56: HW | AB56: Hot water
AA57: Misc. | AB57: Miscellaneous
AA58: NFRC | AB58: National Fenestration Rating Council
AA59: OA | AB59: Outdoor air
AA60: PD | AB60: Pressure drop
AA61: PV | AB61: Photovoltaics
AA62: sf | AB62: Square feet
AA63: SHGC | AB63: Solar heat gain coefficient
AA64: TEDI | AB64: Thermal Energy Demand Intensity
AA65: VT | AB65: Visible transmittance
AA66: W | AB66: Watt
AA67: WB | AB67: Wet-bulb

Sheet Project Information
E1: Project Information
C3: =5/0 -> 
E5: Table of Contents
E6: =Proj_Info_Gen_Header -> General Information
E7: =Proj_Info_Table1_Header -> Table 1: Building Areas
E8: =Proj_Info_Table2_Header -> Table 2: Thermal Block Types and Standardized Model Inputs
E9: =Proj_Info_Default_HVAC_Sys_Header -> Table 3: Default HVAC System Configuration
C10: =5/0 -> 
E12: Instructions 1. Complete the Project Information tab before completing any other tabs, as certain inputs on this tab influence the selections on subsequent tabs.
E14: General Information
E16: Project name
E17: Energy model based on | J17: <Specify docs date>
E18: Simulation Program | J18: <Specify version> | AA18: Default
E19: Name of simulation weather file | AA19: USA_MA_Boston-Logan.Intl.AP.725090_TMYx.2004-2018
E20: Were external calculations used? | J20: =IF(G20="Yes","Please submit documentation of the external calculations for review. See the Submittal Checklist tab for documentation requirements.","") -> 
E22: Notes Please include applicable notes as needed.
E25: Table 1: Building Areas
E26: Instructions 1. Enter the building area types, floor areas, and HVAC modeling method. Areas with different HVAC Modeling Methods, such as those with yet-to-be designed HVAC systems, should be reported on separate rows. 2. Add additional rows using the "Add Row(s)" button below Table 1. Rows may also be removed using the "Remove Row(s)" button.
E28: Building Area Type(s) | F28: Floor Area That is Both Heated and Cooled (ft2) | G28: Heated-Only Floor Area (ft2) | H28: Unconditioned Floor Area (ft2) | I28: Conditioned Floor Area (ft2) | J28: Total, ft2 | K28: # of Above and Below Grade Floors | L28: HVAC Design Status | M28: HVAC Modeling Method | AA28: TEDI Space Use Type | AB28: Unique TEDI Space Uses | AC28: Sum Space Use Conditioned Areas | AD28: Percent of total conditioned floor area | AE28: Predominant? | AF28: Flag >10%? | AG28: TEDI Predominant Space type | AH28: Area to subtract from total conditioned (for calculating cooling TEDI) | AI28: Default HVAC Systems Flag | AJ28: # As-designed | AK28: # Default as-designed | AL28: #As-designed methods | AM28: HVAC method flag, 1=flag | AN28: As-Designed HVAC Systems Flag
C29: 1 | I29: =IFERROR(F29+G29,"-") -> 0 | J29: =IFERROR(I29+H29,"-") -> 0 | M29: =IF(L29="Yet-to-be designed","Default HVAC System Configuration","") ->  | O29: =IF(N29="Yet-to-be designed","Default HVAC System Configuration","") ->  | AA29: =IFERROR(INDEX(TEDI_Space_Use_Type,MATCH(E29,TEDI_Bldg_Area_Type,0),),"") ->  | AB29: =IFERROR(INDEX($AA$29:$AA$38, MATCH(0, IF($AA$29:$AA$38<>"", COUNTIF($AB$28:AB28, $AA$29:$AA$38), ""), 0)), "") ->  | AC29: =SUMIF($AA$29:$AA$38,AB29,$I$29:$I$38) -> 0 | AD29: =AC29/$I$39 ->  | AE29: =IF(AD29=MAX($AD$29:$AD$38),"X","") ->  | AF29: =IF(AND(AE29<>"X",AD29>0.1),"X","") ->  | AG29: =INDEX($AB$29:$AB$38,MATCH("X",$AE$29:$AE$38,0),) ->  | AH29: =IF(AND(M29="As-designed HVAC Systems",AD29>0.1),G29,0) ->  | AI29: =COUNTIF(M29:N38,"Default HVAC System Configuration") -> 0 | AJ29: =COUNTIF(L29:L38,"Designed") -> 0 | AK29: =COUNTIFS(L29:L38,"Designed",M29:M38,"Default HVAC System Configuration") -> 0 | AL29: =COUNTIFS(L29:L38,"Designed",M29:M38,"As-designed HVAC Systems") -> 0 | AM29: =IF(AND(AK29<>AJ29,AL29<>AJ29),1,0) -> 0 | AN29: =COUNTIF(M29:N38,"As-Designed HVAC Systems") -> 0
C30: 1 | I30: =IFERROR(F30+G30,"-") -> 0 | J30: =IFERROR(I30+H30,"-") -> 0 | M30: =IF(L30="Yet-to-be designed","Default HVAC System Configuration","") ->  | O30: =IF(N30="Yet-to-be designed","Default HVAC System Configuration","") ->  | AA30: =IFERROR(INDEX(TEDI_Space_Use_Type,MATCH(E30,TEDI_Bldg_Area_Type,0),),"") ->  | AB30: =IFERROR(INDEX($AA$29:$AA$38, MATCH(0, IF($AA$29:$AA$38<>"", COUNTIF($AB$28:AB29, $AA$29:$AA$38), ""), 0)), "") ->  | AC30: =SUMIF($AA$29:$AA$38,AB30,$I$29:$I$38) -> 0 | AD30: =AC30/$I$39 ->  | AE30: =IF(AD30=MAX($AD$29:$AD$38),"X","") ->  | AF30: =IF(AND(AE30<>"X",AD30>0.1),"X","") -> 
C31: =5 / 0 ->  | I31: 0 | J31: 0 | M31: =IF(L31="Yet-to-be designed","Default HVAC System Configuration","") ->  | O31: =IF(N31="Yet-to-be designed","Default HVAC System Configuration","") ->  | AA31: =IFERROR(INDEX(TEDI_Space_Use_Type,MATCH(E31,TEDI_Bldg_Area_Type,0),),"") ->  | AB31: =IFERROR(INDEX($AA$29:$AA$38, MATCH(0, IF($AA$29:$AA$38<>"", COUNTIF($AB$28:AB30, $AA$29:$AA$38), ""), 0)), "") ->  | AC31: 0
C32: =5/0 ->  | I32: 0 | J32: 0 | M32: =IF(L32="Yet-to-be designed","Default HVAC System Configuration","") ->  | O32: =IF(AND(L32="Designed",$AM$29=1),"The selected approach shall be the same for all designed areas.","") ->  | AA32: =IFERROR(INDEX(TEDI_Space_Use_Type,MATCH(E32,TEDI_Bldg_Area_Type,0),),"") ->  | AB32: =IFERROR(INDEX($AA$29:$AA$38, MATCH(0, IF($AA$29:$AA$38<>"", COUNTIF($AB$28:AB31, $AA$29:$AA$38), ""), 0)), "") ->  | AC32: 0
I33: 0 | J33: 0 | AA33: =IFERROR(INDEX(TEDI_Space_Use_Type,MATCH(E33,TEDI_Bldg_Area_Type,0),),"") ->  | AB33: =IFERROR(INDEX($AA$29:$AA$38, MATCH(0, IF($AA$29:$AA$38<>"", COUNTIF($AB$28:AB32, $AA$29:$AA$38), ""), 0)), "") ->  | AC33: 0
I34: 0 | J34: 0 | AA34: =IFERROR(INDEX(TEDI_Space_Use_Type,MATCH(E34,TEDI_Bldg_Area_Type,0),),"") ->  | AB34: =IFERROR(INDEX($AA$29:$AA$38, MATCH(0, IF($AA$29:$AA$38<>"", COUNTIF($AB$28:AB33, $AA$29:$AA$38), ""), 0)), "") ->  | AC34: 0
I35: 0 | J35: 0 | AA35: =IFERROR(INDEX(TEDI_Space_Use_Type,MATCH(E35,TEDI_Bldg_Area_Type,0),),"") ->  | AB35: =IFERROR(INDEX($AA$29:$AA$38, MATCH(0, IF($AA$29:$AA$38<>"", COUNTIF($AB$28:AB34, $AA$29:$AA$38), ""), 0)), "") ->  | AC35: 0
I36: 0 | J36: 0 | AA36: =IFERROR(INDEX(TEDI_Space_Use_Type,MATCH(E36,TEDI_Bldg_Area_Type,0),),"") ->  | AB36: =IFERROR(INDEX($AA$29:$AA$38, MATCH(0, IF($AA$29:$AA$38<>"", COUNTIF($AB$28:AB35, $AA$29:$AA$38), ""), 0)), "") ->  | AC36: 0
I37: 0 | J37: 0 | AA37: =IFERROR(INDEX(TEDI_Space_Use_Type,MATCH(E37,TEDI_Bldg_Area_Type,0),),"") ->  | AB37: =IFERROR(INDEX($AA$29:$AA$38, MATCH(0, IF($AA$29:$AA$38<>"", COUNTIF($AB$28:AB36, $AA$29:$AA$38), ""), 0)), "") ->  | AC37: 0
I38: 0 | J38: 0 | AA38: =IFERROR(INDEX(TEDI_Space_Use_Type,MATCH(E38,TEDI_Bldg_Area_Type,0),),"") ->  | AB38: =IFERROR(INDEX($AA$29:$AA$38, MATCH(0, IF($AA$29:$AA$38<>"", COUNTIF($AB$28:AB37, $AA$29:$AA$38), ""), 0)), "") ->  | AC38: 0
E39: Total | F39: =SUM(F29:F38) -> 0 | G39: 0 | H39: 0 | I39: 0 | J39: 0 | K39: 0 | L39: - | M39: - | AG39: Total: | AH39: =SUM(AH29:AH38) -> 
C40: =IF(E40="",5/0,1) ->  | E40: =IF(COUNTIF(AF29:AF38,"X")<>0,"One or more building area types comprises more than 10% of the total space conditioned area. Per C407.1.1.6 any use type with more than 10% of the total space conditioned area must separately and individually show compliance for that respective use type."&" Please submit the non-predominant building area types that exceed 10% of the total space conditioned area in a separate TEDI Compliance Tool."&" Use types that do not exceed 10% will be treated as the majority use type in TEDI calculations.","") -> 
E43: Notes Please include applicable notes as needed.
E46: Table 2: Thermal Block Types and Standardized Model Inputs
E47: Instructions 1. Enter the thermal block types and gross floor areas. This information will be used to determine the standardized model inputs and perform automated quality control checks on the Quality Control Checks tab. 2. Red filled cells in the "Gross Floor Area (ft²) column indicates that the total reported thermal block floor area is more than 5% different from the total floor area reported in Table 1 and should be revised. 3. Red filled cells in the "Thermal Block Type" column indicates that the selected thermal blocks do not match the building type. Resolve by selecting the appropriate thermal blocks in the dropdown.
C49: =5/0 ->  | H49: =Reference!BM3 -> 1 | I49: =Reference!BN3 -> 2 | J49: =Reference!BO3 -> 3 | K49: =Reference!BP3 -> 4 | L49: =Reference!BQ3 -> 5 | M49: =Reference!BR3 -> 6 | N49: =Reference!BS3 -> 7
E50: Thermal Block Type | G50: Gross Floor Area (ft2) | H50: Schedule Index from Supplement | I50: Misc. Loads* W/ft² | J50: Lighting Power W/ft² | K50: Ventilation Rate** CFM/ft² | L50: Occupant Density ft²/person | M50: Occupant Heat Gain Btu/h-person
M51: Sensible | N51: Latent | AA51: Row | AB51: Lighting EFLH | AC51: Lighting kWh | AD51: Misc EFLH | AE51: Misc kWh | AF51: Lgt Peak Fraction Sch | AG51: Misc Peak Fraction Sch | AH51: K-12 Cafeteria Area | AI51: Lighting W | AJ51: Misc W | AK51: Lighting kWh | AL51: Misc kWh | AM51: SF Thermal Blocks
C52: 1 | H52: =IF($E52="","",INDEX(Inputs_Table,$AA52,H$49)) ->  | I52: =IF($E52="","",INDEX(Inputs_Table,$AA52,I$49)) ->  | J52: =IF($E52="","",INDEX(Inputs_Table,$AA52,J$49)) ->  | K52: =IF($E52="","",INDEX(Inputs_Table,$AA52,K$49)) ->  | L52: =IF($E52="","",INDEX(Inputs_Table,$AA52,L$49)) ->  | M52: =IF($E52="","",INDEX(Inputs_Table,$AA52,M$49)) ->  | N52: =IF($E52="","",INDEX(Inputs_Table,$AA52,N$49)) ->  | AA52: =SUMPRODUCT(--(Inputs_Thermal_Block_Lookup=E52),--(Inputs_Min_Area<Proj_Info_Cond_SF),--(Inputs_Max_Area>Proj_Info_Cond_SF),Inputs_Row) -> 0 | AB52: =IFERROR(INDEX(EFLH_SchFraction_Lookup,MATCH(H52,INDEX(EFLH_SchFraction_Lookup,,Reference!$AY$3),0),Reference!$AZ$3),"") ->  | AC52: =IFERROR(J52*G52/1000*AB52,"") ->  | AD52: =IFERROR(INDEX(EFLH_SchFraction_Lookup,MATCH(H52,INDEX(EFLH_SchFraction_Lookup,,Reference!$AY$3),0),Reference!$BC$3),"") ->  | AE52: =IFERROR(I52*G52/1000*AD52,"") ->  | AF52: =IFERROR(INDEX(EFLH_SchFraction_Lookup,MATCH(H52,INDEX(EFLH_SchFraction_Lookup,,Reference!$AY$3),0),Reference!$BD$3),"") ->  | AG52: =IFERROR(INDEX(EFLH_SchFraction_Lookup,MATCH(H52,INDEX(EFLH_SchFraction_Lookup,,Reference!$AY$3),0),Reference!$BG$3),"") ->  | AH52: =SUMIF($E$52:$E$55,"K-12 Cafeteria",$G$52:$G$55) -> 0 | AI52: =SUMPRODUCT(G52:G55,J52:J55) -> 0 | AJ52: =SUMPRODUCT(G52:G55,I52:I55) -> 0 | AK52: =SUM(AC52:AC55) -> 0 | AL52: =SUM(AE52:AE55) -> 0 | AM52: =SUM(G52:G55) -> 0
C53: =5 / 0 ->  | H53: =IF($E53="","",INDEX(Inputs_Table,$AA53,H$49)) ->  | I53: =IF($E53="","",INDEX(Inputs_Table,$AA53,I$49)) ->  | J53: =IF($E53="","",INDEX(Inputs_Table,$AA53,J$49)) ->  | K53: =IF($E53="","",INDEX(Inputs_Table,$AA53,K$49)) ->  | L53: =IF($E53="","",INDEX(Inputs_Table,$AA53,L$49)) ->  | M53: =IF($E53="","",INDEX(Inputs_Table,$AA53,M$49)) ->  | N53: =IF($E53="","",INDEX(Inputs_Table,$AA53,N$49)) ->  | AA53: =SUMPRODUCT(--(Inputs_Thermal_Block_Lookup=E53),--(Inputs_Min_Area<Proj_Info_Cond_SF),--(Inputs_Max_Area>Proj_Info_Cond_SF),Inputs_Row) -> 0 | AB53: =IFERROR(INDEX(EFLH_SchFraction_Lookup,MATCH(H53,INDEX(EFLH_SchFraction_Lookup,,Reference!$AY$3),0),Reference!$AZ$3),"") ->  | AC53: =IFERROR(J53*G53/1000*AB53,"") ->  | AD53: =IFERROR(INDEX(EFLH_SchFraction_Lookup,MATCH(H53,INDEX(EFLH_SchFraction_Lookup,,Reference!$AY$3),0),Reference!$BC$3),"") ->  | AE53: =IFERROR(I53*G53/1000*AD53,"") ->  | AF53: =IFERROR(INDEX(EFLH_SchFraction_Lookup,MATCH(H53,INDEX(EFLH_SchFraction_Lookup,,Reference!$AY$3),0),Reference!$BD$3),"") ->  | AG53: =IFERROR(INDEX(EFLH_SchFraction_Lookup,MATCH(H53,INDEX(EFLH_SchFraction_Lookup,,Reference!$AY$3),0),Reference!$BG$3),"") -> 
H54: =IF($E54="","",INDEX(Inputs_Table,$AA54,H$49)) ->  | I54: =IF($E54="","",INDEX(Inputs_Table,$AA54,I$49)) ->  | J54: =IF($E54="","",INDEX(Inputs_Table,$AA54,J$49)) ->  | K54: =IF($E54="","",INDEX(Inputs_Table,$AA54,K$49)) ->  | L54: =IF($E54="","",INDEX(Inputs_Table,$AA54,L$49)) ->  | M54: =IF($E54="","",INDEX(Inputs_Table,$AA54,M$49)) ->  | N54: =IF($E54="","",INDEX(Inputs_Table,$AA54,N$49)) ->  | AA54: =SUMPRODUCT(--(Inputs_Thermal_Block_Lookup=E54),--(Inputs_Min_Area<Proj_Info_Cond_SF),--(Inputs_Max_Area>Proj_Info_Cond_SF),Inputs_Row) -> 0 | AB54: =IFERROR(INDEX(EFLH_SchFraction_Lookup,MATCH(H54,INDEX(EFLH_SchFraction_Lookup,,Reference!$AY$3),0),Reference!$AZ$3),"") ->  | AC54: =IFERROR(J54*G54/1000*AB54,"") ->  | AD54: =IFERROR(INDEX(EFLH_SchFraction_Lookup,MATCH(H54,INDEX(EFLH_SchFraction_Lookup,,Reference!$AY$3),0),Reference!$BC$3),"") ->  | AF54: =IFERROR(INDEX(EFLH_SchFraction_Lookup,MATCH(H54,INDEX(EFLH_SchFraction_Lookup,,Reference!$AY$3),0),Reference!$BD$3),"") ->  | AG54: =IFERROR(INDEX(EFLH_SchFraction_Lookup,MATCH(H54,INDEX(EFLH_SchFraction_Lookup,,Reference!$AY$3),0),Reference!$BG$3),"") -> 
H55: =IF($E55="","",INDEX(Inputs_Table,$AA55,H$49)) ->  | I55: =IF($E55="","",INDEX(Inputs_Table,$AA55,I$49)) ->  | J55: =IF($E55="","",INDEX(Inputs_Table,$AA55,J$49)) ->  | K55: =IF($E55="","",INDEX(Inputs_Table,$AA55,K$49)) ->  | L55: =IF($E55="","",INDEX(Inputs_Table,$AA55,L$49)) ->  | M55: =IF($E55="","",INDEX(Inputs_Table,$AA55,M$49)) ->  | N55: =IF($E55="","",INDEX(Inputs_Table,$AA55,N$49)) ->  | AA55: =SUMPRODUCT(--(Inputs_Thermal_Block_Lookup=E55),--(Inputs_Min_Area<Proj_Info_Cond_SF),--(Inputs_Max_Area>Proj_Info_Cond_SF),Inputs_Row) -> 0 | AB55: =IFERROR(INDEX(EFLH_SchFraction_Lookup,MATCH(H55,INDEX(EFLH_SchFraction_Lookup,,Reference!$AY$3),0),Reference!$AZ$3),"") ->  | AC55: =IFERROR(J55*G55/1000*AB55,"") ->  | AD55: =IFERROR(INDEX(EFLH_SchFraction_Lookup,MATCH(H55,INDEX(EFLH_SchFraction_Lookup,,Reference!$AY$3),0),Reference!$BC$3),"") ->  | AF55: =IFERROR(INDEX(EFLH_SchFraction_Lookup,MATCH(H55,INDEX(EFLH_SchFraction_Lookup,,Reference!$AY$3),0),Reference!$BD$3),"") ->  | AG55: =IFERROR(INDEX(EFLH_SchFraction_Lookup,MATCH(H55,INDEX(EFLH_SchFraction_Lookup,,Reference!$AY$3),0),Reference!$BG$3),"") -> 
E56: =IFERROR(IF(Proj_Info_Predominant_Type=AA57,AA56,IF(Proj_Info_Predominant_Type=AB57,AB56,IF(Proj_Info_Predominant_Type=AC57,AC56,IF(Proj_Info_Predominant_Type=AD57,AD56,"")))),"") ->  | AA56: * Use a sensible fraction of 1.0 and a latent fraction of 0.0 for all thermal blocks with the exception that Residential should be modeled with a latent fraction of 0.14. | AB56: * Use a sensible fraction of 1.0 and a latent fraction of 0.0 for all thermal blocks except model Cafeteria with a 0.25 latent and 0.75 sensible fraction. | AC56: * Use a sensible fraction of 1.0 and a latent fraction of 0.0 for all thermal blocks. | AD56: * Use a sensible fraction of 1.0 and a latent fraction of 0.0 for all thermal blocks.
E57: ** The designed ventilation rate is required to be modeled when it exceeds the rate shown in Table 2 AND the designed rate exceeds minimum code requirements by more than 135%. | AA57: Residential | AB57: K-12 | AC57: Misc | AD57: Other
C61: =IF(Proj_Info_DefaultHVAC_Flag=0,5/0,1) ->  | E61: Table 3: Default HVAC System Configuration
C62: =IF(Proj_Info_DefaultHVAC_Flag=0,5/0,1) ->  | E62: Instructions 1. For buildings and areas of buildings following Section 13.2 (Default HVAC System Configuration), model the configurations shown in Table 3. Model specific system parameters, including but not limited to fan power and system efficiencies, according to Section 13.2 of the Simulation Guidelines.
C63: =5/0 ->  | G63: =Reference!D3 -> 2 | H63: =Reference!E3 -> 3 | I63: =Reference!F3 -> 4 | J63: =Reference!G3 -> 5 | K63: =Reference!H3 -> 6
C64: =IF(Proj_Info_DefaultHVAC_Flag=0,5/0,1) -> 
C65: =IF(Proj_Info_DefaultHVAC_Flag=0,5/0,1) ->  | E65: Building Type | G65: Heating/Cooling System Number and Type | H65: System Type | I65: Fan Control | J65: Cooling Type | K65: Heating Type | L65: Mechanical Ventilation System Type | AA65: Row
C66: =IF(Proj_Info_DefaultHVAC_Flag=0,5/0,1) ->  | E66: =Comp_Calcs_Use_Type ->  | G66: =INDEX(Default_HVAC_Config,$AA$66,G63) ->  | H66: =INDEX(Default_HVAC_Config,$AA$66,H63) ->  | I66: =INDEX(Default_HVAC_Config,$AA$66,I63) ->  | J66: =INDEX(Default_HVAC_Config,$AA$66,J63) ->  | K66: =INDEX(Default_HVAC_Config,$AA$66,K63) ->  | L66: DOAS de-coupled from the heating and cooling system | AA66: =MATCH(E66,INDEX(Default_HVAC_Config,,Reference!$C$3),0) -> 
C67: =IF(Proj_Info_DefaultHVAC_Flag=0,5/0,IF(Proj_Info_Predominant_Type="K-12",1,5/0)) ->  | E67: K-12 school cafeterias (including dining and food preparation areas), auditoriums, and gymnasiums | G67: - | H67: Single zone | I67: Variable Volume | J67: =J66 ->  | K67: =K66 ->  | L67: System provides mechanical ventilation to the thermal block
C68: =IF(Proj_Info_DefaultHVAC_Flag=0,5/0,1) -> 

Sheet Guidelines Checklist
E1: Guidelines Checklist
C3: =5/0 -> 
E5: Table of Contents
E6: =Guidelines_Checklist_Table1_Header -> Table 1: Simulation Guidelines Checklist - Section 2
E7: =Guidelines_Checklist_Table2_Header -> Table 2: Simulation Guidelines Checklist - Section 3
E8: =Guidelines_Checklist_Table3_Header -> Table 3: Simulation Guidelines Checklist - Section 4
E9: =Guidelines_Checklist_Table4_Header -> Table 4: Simulation Guidelines Checklist - Section 6
E10: =Guidelines_Checklist_Table5_Header -> Table 5: Simulation Guidelines Checklist - Section 7
E11: =Guidelines_Checklist_Table6_Header -> Table 6: Simulation Guidelines Checklist - Section 8
E12: =Guidelines_Checklist_Table7_Header -> Table 7: Simulation Guidelines Checklist - Section 9
E13: =Guidelines_Checklist_Table8_Header -> Table 8: Simulation Guidelines Checklist - Section 10
E14: =Guidelines_Checklist_Table9_Header -> Table 9: Simulation Guidelines Checklist - Section 11
E15: =Guidelines_Checklist_Table10_Header -> Table 10: Simulation Guidelines Checklist - Section 12
E16: =Guidelines_Checklist_Table11_Header -> Table 11: Simulation Guidelines Checklist - Section 13.1
C17: =IF(Proj_Info_DefaultHVAC_Flag<>0,1,5/0) ->  | E17: =Guidelines_Checklist_Table12_Header -> Table 12: Simulation Guidelines Checklist - Section 13.2 Default HVAC System Configuration
C18: =IF(Proj_Info_AsDesigned_HVAC_Flag<>0,1,5/0) ->  | E18: =Guidelines_Checklist_Table13_Header -> Table 13: Simulation Guidelines Checklist - Section 13.3 As-designed HVAC Systems
E19: =Guidelines_Checklist_Table14_Header -> Table 14: Simulation Guidelines Checklist - Section 13.4 Other HVAC Modeling Requirements
E20: =Guidelines_Checklist_Table15_Header -> Table 15: Simulation Guidelines Checklist - Section 14
E22: This checklist shall be used to ensure that the project follows Appendix C: Targeted Performance Simulation Guidelines. It is recommended to consult this checklist throughout the energy modeling process to ensure that the project meets the guidelines.
E24: Instructions 1. In each of the below tables, mark whether each guideline requirement has been followed in the "Complies?" column. For some items, the outcome may auto-populate based on what has been reported elsewhere in the TEDI Compliance Tool. Revise model to comply with all guidelines prior to submission.
E26: Table 1: Simulation Guidelines Checklist - Section 2
E27: Simulation Guidelines Section | F27: Guideline | K27: Complies? | M27: Required Action
E28: 2 | F28: The energy modeler meets the qualification requirements. | M28: =IF(K28="","Incorporate into the energy model","Please submit documentation per the ""Submittal Checklist"" tab.") -> Incorporate into the energy model
E30: Table 2: Simulation Guidelines Checklist - Section 3
E31: Simulation Guidelines Section | F31: Guideline | K31: Complies? | M31: Required Action
E32: 3 | F32: The simulation program is approved. | K32: =IF(AND(Proj_Info_Sim_Program_Version<>"Other",Proj_Info_Sim_Program_Version<>"<Specify version>"),"✓","") ->  | M32: =IF(K32="","Incorporate into the energy model","None") -> Incorporate into the energy model
E34: Table 3: Simulation Guidelines Checklist - Section 4
E35: Simulation Guidelines Section | F35: Guideline | K35: Complies? | M35: Required Action
E36: 4a | F36: The MAStretch2023 or AHJ-approved weather file was used. | K36: =IF(Proj_Info_Weather_File<>"","✓","") ->  | M36: =IF(K36="","Incorporate into the energy model","None") -> Incorporate into the energy model
E37: 4b | F37: Ground temperatures from the weather file and/or software defaults shall be used in the model. | M37: =IF(K37="","Incorporate into the energy model","None") -> Incorporate into the energy model
E38: 4c | F38: The modeled solar reflectance of the site ground surface equals 0.2. | M38: Incorporate into the energy model
E39: 4d | F39: No holidays shall be modeled. | M39: Incorporate into the energy model
E40: 4e | F40: Shading from adjacent structures, significant vegetation and topographical features shall be reflected in the simulation. All elements with height greater than their distance from a proposed building and whose width facing the proposed building is greater than one-third that of the proposed building shall be modeled. | M40: =IF(K40="","Incorporate into the energy model","None") -> Incorporate into the energy model
E42: Table 4: Simulation Guidelines Checklist - Section 6
E43: Simulation Guidelines Section | F43: Guideline | K43: Complies? | M43: Required Action
E44: 6 | F44: Unmet load hours shall not exceed 300 (of the 8760 hours simulated). | K44: =IF(Comp_Calcs_Unmet_Load_Hours<=300,"✓","") ->  | M44: =IF(K44="","Incorporate into the energy model","None") -> Incorporate into the energy model
E46: Table 5: Simulation Guidelines Checklist - Section 7
E47: Simulation Guidelines Section | F47: Guideline | K47: Complies? | M47: Required Action
E48: 7 | F48: The following systems and components shall be excluded from the simulation: 1. Exterior lighting system power and controls 2. Heating loads unrelated to maintaining indoor air related occupant comfort such as swimming pool water heaters, outdoor comfort heating (e.g., patio heaters and exterior fireplaces), gas-fired appliances (stoves and dryers), heat tracing. 3. Renewable energy systems including but not limited to PV and solar thermal hot water collectors 4. Other electricity generation systems such as Combined Heat and Power. 5. Service water heating systems. | M48: =IF(K48="","Incorporate into the energy model","None") -> Incorporate into the energy model
E50: Table 6: Simulation Guidelines Checklist - Section 8
E51: Simulation Guidelines Section | F51: Guideline | K51: Complies? | M51: Required Action
E52: 8.1 | F52: Thermal blocks shall be modeled as prescribed in 90.1 2019 Appendix G Table G3.1, Proposed Building Performance column Row 9 for multifamily buildings and Row 7 for all other occupancy types. Exception: Projects that are modeled with the default HVAC systems following Section 13.2 are permitted to be modeled with the default thermal blocks as prescribed in Sections 8.2 and 8.3. | M52: =IF(K52="","Incorporate into the energy model","None") -> Incorporate into the energy model
C53: =IF(Proj_Info_DefaultHVAC_Flag<>0,1,5/0) ->  | E53: 8.2 | F53: Default thermal blocks have been modeled based on the building use types in Section 8.2.1. The modeled floor area of residential and nonresidential thermal blocks in residential buildings and cafeteria, gymnasium and auditorium thermal blocks in K-12 schools shall be within 5% of the actual design shown on construction documents. The exterior envelope area of each thermal block shall reflect construction documents. Exception: Thermal blocks based on the specified HVAC zones may be used for the “supporting spaces” and “nonresidential” thermal blocks in residential buildings, “school” thermal blocks in K-12 schools and “office” thermal blocks in offices, fire stations, libraries, police stations, post offices, and town halls. When more detailed thermal blocks are modeled following this exception, these thermal blocks are subject to all rules in these guidelines that are applicable to the corresponding aggregated thermal blocks, including but not limited to the standardized assumptions for miscellaneous loads, lighting, occupancy and schedules. | M53: Incorporate into the energy model
C54: =IF(Proj_Info_DefaultHVAC_Flag<>0,1,5/0) ->  | E54: 8.3a | F54: Thermal blocks of the same type shall be aggregated, except separate thermal blocks shall be assumed for interior and perimeter areas. Interior areas shall be those located greater than 15 feet from an exterior wall. Perimeter areas shall be those located within 15 feet of an exterior wall. | M54: Incorporate into the energy model
E55: 8.3a Exception a | F55: Residential, residential supporting, cafeteria, gymnasium and auditorium thermal blocks shall not be split into perimeter and core thermal blocks. | M55: Incorporate into the energy model
E56: 8.3a Exception b | F56: Separate thermal blocks shall be assumed for spaces adjacent to glazed exterior walls; a separate thermal block shall be provided for each orientation, except that orientations that differ by less than 45 degrees may be considered to be the same orientation. Each thermal block shall include all floor area that is 15 feet or less from a glazed perimeter exterior wall, except that floor area within 15 feet of glazed perimeter exterior walls having more than one orientation shall be divided proportionately between thermal blocks. | M56: Incorporate into the energy model
E57: 8.3a Exception c | F57: Residential, residential supporting, cafeteria, gymnasium and auditorium thermal blocks shall not be split into perimeter and core thermal blocks. | M57: Incorporate into the energy model
E58: 8.3a Exception d | F58: Separate thermal blocks shall be assumed for spaces having exterior ceiling or roof assemblies from spaces that do not share these features. | M58: Incorporate into the energy model
E59: 8.3a Exception e | F59: Spaces served by mechanical systems with exhaust air energy recovery shall not be aggregated into the same thermal block with spaces served by mechanical systems that do not have exhaust air energy recovery. | M59: Incorporate into the energy model
E61: Table 7: Simulation Guidelines Checklist - Section 9
E62: Simulation Guidelines Section | F62: Guideline | K62: Complies? | M62: Required Action
E63: 9a | F63: The modeled exterior envelope geometry shall be consistent with construction documents, including proper accounting of fenestration and opaque building envelope types and areas. Each modeled thermal block shall reflect the total area, type and orientation of opaque surfaces (i.e., above and below-grade exterior walls, roof, above and below grade floors) and fenestration associated with the spaces included in the block. | M63: =IF(K63="","Incorporate into the energy model","None") -> Incorporate into the energy model
E64: 9b | F64: The total modeled floor area of conditioned spaces shall be within 5% of the gross floor area shown on the architectural drawings unless justification is provided to AHJ. | M64: =IF(K64="","Incorporate into the energy model","None") -> Incorporate into the energy model
E66: Table 8: Simulation Guidelines Checklist - Section 10
E67: Simulation Guidelines Section | F67: Guideline | K67: Complies? | M67: Required Action
E68: 10.1a | F68: All components of the building envelope shall be modeled as shown on architectural drawings and as described in Section 10. | M68: =IF(K68="","Incorporate into the energy model","None") -> Incorporate into the energy model
E69: 10.1b | F69: Simulation shall account for thermal mass of the exterior surfaces. | M69: =IF(K69="","Incorporate into the energy model","None") -> Incorporate into the energy model
E70: 10.2 | F70: Exterior walls shall be modeled with the U-factors derated to account for thermal bridging using the derating methods described in Section C402.7. | M70: =IF(K70="","Incorporate into the energy model","None") -> Incorporate into the energy model
E71: 10.3 | F71: Exterior roof surfaces shall be modeled using the aged solar reflectance and thermal emittance determined by testing in accordance with CRRC S100. Where aged test data are unavailable, the roof surface shall be modeled with a reflectance of 0.30 and a thermal emittance of 0.90. | M71: Incorporate into the energy model
E72: 10.4a | F72: Modeled fenestration properties shall reflect performance of the complete assembly including frame and glazing and reflect U-factor, SHGC and VT established by a laboratory accredited by a nationally recognized accreditation organization, such as the National Fenestration Rating Council (NFRC) and as described in Section C402.4.6. Fenestration products that do not have such rating shall be modeled with the default properties from 90.1 Table A8.1 for unlabeled skylights and Table A8.2 for unlabeled vertical fenestration. | M72: Incorporate into the energy model
E73: 10.4b | F73: Manual fenestration shading devices, such as blinds or shades, are allowed to be modeled in the residential spaces. In all other space types, manual fenestration shading devices shall not be modeled. | M73: Incorporate into the energy model
E74: 10.4c | F74: Automatically controlled fenestration shades or blinds shall not be modeled. | M74: Incorporate into the energy model
E75: 10.4d | F75: Permanent shading devices, such as fins, overhangs, and light shelves shall be modeled. | M75: Incorporate into the energy model
E76: 10.4e | F76: Shading due to setting fenestration faces back from surround wall faces shall be modeled. | M76: Incorporate into the energy model
E77: 10.4f | F77: Automatically controlled dynamic glazing may be modeled. Manually controlled dynamic glazing shall use the average of the minimum and maximum SHGC and VT. | M77: Incorporate into the energy model
E78: 10.5a | F78: The modeled air leakage rate of the building envelope shall be based on air leakage testing completed following Section C402.5.2. | M78: Incorporate into the energy model
E79: 10.5b | F79: The air leakage rate of the building envelope shall be converted to appropriate units for the simulation program using one of the methods in 90.1 Section G3.1.1.4. | M79: Incorporate into the energy model
E80: 10.5c | F80: The infiltration flow shall be assigned to the thermal blocks in proportion to the area of surfaces adjacent to exterior. | M80: Incorporate into the energy model
E81: 10.5d | F81: Infiltration modeling algorithm selected within simulation tool shall include adjustment for weather. | M81: Incorporate into the energy model
E82: 10.5e | F82: Infiltration schedule shall be as specified in the Schedules and Loads Guidelines Supplement for the appropriate thermal block type. | M82: =IF(K82="","Incorporate into the energy model","None") -> Incorporate into the energy model
E84: Table 9: Simulation Guidelines Checklist - Section 11
E85: Simulation Guidelines Section | F85: Guideline | K85: Complies? | M85: Required Action
E86: 11 | F86: The standardized assumptions prescribed in Table 1-6 in the Schedules and Loads Guidelines Supplement shall be modeled for each thermal block depending on the building use type, gross floor area and thermal block type. See Table 2 on the Project Information tab for relevant modeling parameters for the reported thermal blocks. | M86: =IF(K86="","Incorporate into the energy model","None") -> Incorporate into the energy model
E88: Table 10: Simulation Guidelines Checklist - Section 12
E89: Simulation Guidelines Section | F89: Guideline | K89: Complies? | M89: Required Action
E90: 12a | F90: Interior lighting power shall be modeled based on building use type, modeled floor area and thermal block use type as prescribed in Tables 1-6 in the Schedules and Loads Guideline Supplement. See Table 2 on the Project Information tab for relevant modeling parameters for the reported thermal blocks. | M90: =IF(K90="","Incorporate into the energy model","None") -> Incorporate into the energy model
E91: 12b | F91: Daylighting shall not be modeled in residential thermal blocks. In all other thermal blocks daylighting shall be modeled as follows: 1. For thermal blocks with vertical fenestration, the daylight area shall be modeled as directly adjacent to the vertical fenestration with a width equal to the width of the vertical fenestration and a depth equal to the head height of the vertical fenestration. A photosensor shall be modeled as located at the center of the width of the daylight area, at the depth of the daylight area and at a height of 3 feet. 2. In each nonresidential zone associated with skylights, the daylight area under skylights shall be modeled as bounded, in each direction, by the edge of the skylight area plus 10 feet or the distance to the edge of the zone, whichever is less. A photosensor shall be modeled as located at the center of the horizontal plane of the skylight and at a height of 5 feet. | M91: =IF(K91="","Incorporate into the energy model","None") -> Incorporate into the energy model
E93: Table 11: Simulation Guidelines Checklist - Section 13.1
E94: Simulation Guidelines Section | F94: Guideline | K94: Complies? | M94: Required Action
E95: 13.1a | F95: Buildings and areas within the building for which HVAC systems are not designed and are not shown on the construction documents shall be modeled with the default HVAC systems following Sections 13.2 and 13.4. | M95: =IF(K95="","Incorporate into the energy model","None") -> Incorporate into the energy model
E96: 13.1b | F96: Buildings and areas within the building for which HVAC systems are designed shall be modeled following either of the following options: 1. With the specified systems following Sections 13.3 and 13.4 2. With the default HVAC systems following Section 13.1(a). The selected approach shall be followed for the entire project. | M96: =IF(K96="","Incorporate into the energy model","None") -> Incorporate into the energy model
C98: =IF(Proj_Info_DefaultHVAC_Flag<>0,1,5/0) ->  | E98: Table 12: Simulation Guidelines Checklist - Section 13.2 Default HVAC System Configuration
E99: Simulation Guidelines Section | F99: Guideline | K99: Complies? | M99: Required Action
E100: 13.2.1 | F100: For buildings and areas within buildings modeled with default HVAC systems following Sections 13.2 and 13.4, the modeled heating and cooling system types shall be determined using Table 1 based on the building type and the total modeled floor area. Table 2 provides additional details for each system type. Exceptions: a. K-12 school cafeterias (including dining and food preparation areas), auditoriums, and gymnasiums shall be modeled with variable volume single zone system that has same heating and cooling type as the remainder of the building. | M100: Incorporate into the energy model
E101: 13.2.2a | F101: For buildings and areas within buildings modeled with default HVAC systems following Sections 13.2 and 13.4, air economizer shall only be modeled for the single zone systems modeled following Section 13.2.1 Exception (a). | M101: Incorporate into the energy model
E102: 13.2.2b | F102: For buildings and areas within buildings modeled with default HVAC systems following Sections 13.2 and 13.4, air economizers shall be modeled with a differential dry bulb temperature control to set the outdoor airflow to minimum ventilation requirements when the dry-bulb temperature of outdoor air is higher than the dry-bulb temperature of the return air with a low temperature minimum temperature setpoint cutoff of 45F. Modeled air economizer systems shall be capable of and configured to modulate outdoor air and return air dampers to provide up to 100% of the design supply air quantity as outdoor air for cooling. | M102: Incorporate into the energy model
E103: 13.2.2c | F103: For buildings and areas within buildings modeled with default HVAC systems following Sections 13.2 and 13.4, the exhaust air recovery shall be locked out during air economizer operation if applicable. | M103: Incorporate into the energy model
E104: 13.2.3a | F104: For buildings and areas within buildings modeled with default HVAC systems following Sections 13.2 and 13.4, mechanical ventilation shall be provided by a dedicated outdoor air system (DOAS), de-coupled from the system that provides heating and cooling. Exception: Single zone systems modeled following Section 13.2.1 Exception (a) shall be modeled as also providing mechanical ventilation to the thermal block. | M104: Incorporate into the energy model
E105: 13.2.3b | F105: For buildings and areas within buildings modeled with default HVAC systems following Sections 13.2 and 13.4, demand control ventilation shall not be modeled. | M105: Incorporate into the energy model
E106: 13.2.3c | F106: For buildings and areas within buildings modeled with default HVAC systems following Sections 13.2 and 13.4, exhaust air energy recovery effectiveness shall be modeled as specified. The modeled controls shall allow bypassing energy recovery to permit air economizer operation and allow free cooling when outdoor air conditions are favorable. Controls shall be modelled to prevent overheating or overcooling of the mixed/supply air by the system. | M106: Incorporate into the energy model
E107: 13.2.3d | F107: For buildings and areas within buildings modeled with default HVAC systems following Sections 13.2 and 13.4, DOAS systems shall be modeled with preheating and precooling coils of the same type as modeled for the space conditioning heating and cooling systems. Exception: Projects modeling System 3 to provide heating and cooling shall model the DOAS system(s) providing minimum outdoor air requirements with an electric resistance heating coil and DX cooling coil. | M107: Incorporate into the energy model
E108: 13.2.3e | F108: For buildings and areas within buildings modeled with default HVAC systems following Sections 13.2 and 13.4, the DOAS shall not heat supply air above 60°F when representative building loads or outdoor air temperature indicate that the majority of zones require cooling. | M108: Incorporate into the energy model
E109: 13.2.3f | F109: For buildings and areas within buildings modeled with default HVAC systems following Sections 13.2 and 13.4, the DOAS shall not cool supply air below 70°F when representative building loads or outdoor air temperature indicate that the majority of zones require heating. | M109: Incorporate into the energy model
E110: 13.2.3g | F110: For buildings and areas within buildings modeled with default HVAC systems following Sections 13.2 and 13.4, no dehumidification controls shall be modeled. | M110: Incorporate into the energy model
C111: =IF(Proj_Info_DefaultHVAC_Flag<>0,IF(Proj_Info_Default_HVAC_Type="System 1 ASHP",1,5/0),5/0) ->  | E111: 13.2.4a | F111: For buildings and areas within buildings modeled with default HVAC systems following Sections 13.2 and 13.4, air source heat pumps shall be modeled with a cooling efficiency of 3.74 COPnfcooling and a heating efficiency of 3.66 COPnfheating at 47F DB. | M111: Incorporate into the energy model
C112: =IF(Proj_Info_DefaultHVAC_Flag<>0,IF(Proj_Info_Default_HVAC_Type="System 3 WSHP",1,5/0),5/0) ->  | E112: 13.2.4b | F112: For buildings and areas within buildings modeled with default HVAC systems following Sections 13.2 and 13.4, water source heat pumps shall be modeled with a cooling efficiency of 4.4 COPnfcooling at an entering water temperature of 86F and a heating efficiency of 5.0 COPnfheating at an entering water temperature of 68F. | M112: Incorporate into the energy model
E113: 13.2.5 | F113: For buildings and areas within buildings modeled with default HVAC systems following Sections 13.2 and 13.4, heating and cooling coil capacities shall be auto sized based on sizing runs and shall be oversized by 15% for cooling and 25% for heating. The following design day conditions shall be used in the sizing runs: a. Space temperature design setpoints • Summer: 75F DB • Winter: 70F DB b. Outdoor ambient design conditions • Summer: 87F DB; 71F WB • Winter: 7F DB c. Design day schedules included in the Schedules and Loads Guidelines Supplement shall be used. | M113: =IF(K113="","Incorporate into the energy model","None") -> Incorporate into the energy model
E114: 13.2.6a | F114: For buildings and areas within buildings modeled with default HVAC systems following Sections 13.2 and 13.4, supply airflow rates for system 1 through 3 shall be auto sized and based on a supply-air-to-room temperature set-point difference of 20°F, or the minimum outdoor airflow rate, whichever is greater. | M114: Incorporate into the energy model
E115: 13.2.7a | F115: For buildings and areas within buildings modeled with default HVAC systems following Sections 13.2 and 13.4, heating and cooling system fans that do not provide outside air to meet minimum ventilation requirements shall cycle on and off to meeting heating and cooling loads. | M115: Incorporate into the energy model
E116: 13.2.7b | F116: For buildings and areas within buildings modeled with default HVAC systems following Sections 13.2 and 13.4, DOAS fans shall operate continuously during occupied hours and remain off during unoccupied hours. | M116: Incorporate into the energy model
E117: 13.2.7c | F117: For buildings and areas within buildings modeled with default HVAC systems following Sections 13.2 and 13.4, heating and cooling system fans in single zone systems modeled following Section 13.2 Exception a that provide outside air to meet minimum ventilation requirements (e.g., systems serving cafeterias, auditoriums, and gymnasiums) shall operate continuously during occupied hours and shall cycle to meet heating and cooling loads during unoccupied hours. | M117: Incorporate into the energy model
E118: 13.2.8a, b | F118: For buildings and areas within buildings modeled with default HVAC systems following Sections 13.2 and 13.4, design fan power shall be modeled per Table 3 and Table 4 in the Simulation Guidelines based on the building type, areas served, and the system type. | M118: Incorporate into the energy model
E119: 13.2.8c | F119: For buildings and areas within buildings modeled with default HVAC systems following Sections 13.2 and 13.4, ventilation systems serving thermal blocks for which exhaust air energy recovery other than a coil runaround loop is specified in the proposed design shall be modeled with additional fan power determined as follows: 1. For each airstream determine the pressure drop (PD) through the specified energy recovery device based on design documents and or manufacturer specification. 2. Calculate the additional brake horsepower to be modeled (bhp) = sum of (PD × cfmD/4131) cfmD = the cfm of each applicable air stream 3. Convert bhp to kW = bhp × 0.746/fan motor efficiency Fan motor efficiency = the efficiency from ASHRAE 90.1 2019 Section 10 for the next motor size greater than the bhp. | M119: =IF(K119="","Incorporate into the energy model","None") -> Incorporate into the energy model
C120: =IF(Proj_Info_DefaultHVAC_Flag<>0,IF(Proj_Info_Default_HVAC_Type="System 2 FCU",1,5/0),5/0) ->  | E120: 13.2.9 | F120: For buildings and areas within buildings modeled with default HVAC systems following Sections 13.2 and 13.4, system 2 chilled and hot water plants have been modeled as described in Section 13.2.9 subsections a and b. | M120: Incorporate into the energy model
C121: =IF(Proj_Info_DefaultHVAC_Flag<>0,IF(Proj_Info_Default_HVAC_Type="System 3 WSHP",1,5/0),5/0) ->  | E121: 13.2.9 | F121: For buildings and areas within buildings modeled with default HVAC systems following Sections 13.2 and 13.4, system 3 WSHP has been modeled as described in Section 13.2.9 subsections c and d. | M121: Incorporate into the energy model
C123: =IF(Proj_Info_AsDesigned_HVAC_Flag<>0,1,5/0) ->  | E123: Table 13: Simulation Guidelines Checklist - Section 13.3 As-designed HVAC Systems
E124: Simulation Guidelines Section | F124: Guideline | K124: Complies? | M124: Required Action
E125: 13.3a | F125: For buildings and areas within buildings modeled with as-designed HVAC systems following Sections 13.3 and 13.4, where an HVAC system has been designed and submitted with design documents, the HVAC model shall be consistent with design documents including all components and controls except as prescribed in Section 13.4 and in the Schedule and Loads Guidelines Supplement. Exception: System air flows and heating and cooling capacities shall be auto sized per Section 13.2.4. | M125: Incorporate into the energy model
E126: 13.3b | F126: For buildings and areas within buildings modeled with as-designed HVAC systems following Sections 13.3 and 13.4, where efficiency ratings include supply fan energy, the efficiency rating shall be adjusted to remove the supply fan energy from the efficiency rating. | M126: Incorporate into the energy model
E127: 13.3c | F127: For buildings and areas within buildings modeled with as-designed HVAC systems following Sections 13.3 and 13.4, the systems shall be modeled using manufacturers’ full- and part load data for the HVAC system without fan power. | M127: Incorporate into the energy model
E128: 13.3d | F128: For buildings and areas within buildings modeled with as-designed HVAC systems following Sections 13.3 and 13.4, demand control ventilation shall be modeled per Section 13.3d. | M128: Incorporate into the energy model
E130: Table 14: Simulation Guidelines Checklist - Section 13.4 Other HVAC Modeling Requirements
E131: Simulation Guidelines Section | F131: Guideline | K131: Complies? | M131: Required Action
E132: 13.4.1 | F132: The minimum ventilation flow rate shall be modeled using the OA CFM/sf rate from Tables 1-6 of the Schedules and Loads Guidelines Supplement for the building use type. Exception: The specified rate shall be modeled when both of the following applies: a. The specified ventilation rate exceeds the minimum requirements of applicable codes and standards by more than 135% and b. The specified ventilation rate exceeds the OA CFM/sf value from Tables 1-6 of the Schedules and Loads Guidelines Supplement for the building use type. Minimum required outdoor air and specified ventilation rates shall be documented as described in Section C103.2 #16. | M132: Incorporate into the energy model
E133: 13.4.2 | F133: Piping and ductwork losses shall not be modeled. | M133: Incorporate into the energy model
E135: Table 15: Simulation Guidelines Checklist - Section 14
E136: Simulation Guidelines Section | F136: Guideline | K136: Complies? | M136: Required Action
E137: 14.1 | F137: For projects in which systems and components that must be modeled as designed following these guidelines have not yet been designed, those yet-to-be-designed features shall be modeled to comply with but not exceed the requirements of the most current version of 225 CMR 23: Massachusetts Commercial Stretch Energy Code. Core and shell buildings where the details of the building occupancy is not known shall be categorized as an office building. For initial tenant fit-out projects, existing unmodified systems and components shall be modeled as- built. Section C401.2 does not apply to subsequent tenant fit-out projects. Tenant fit-outs after the initial tenant fit-out shall be treated as alterations or change of use as appropriate. | M137: Incorporate into the energy model
E138: 14.2 | F138: Following C502.1, large additions which are either more than 100% of the size of the existing building or equal to or greater than 20,000-sf require conformance to C401.2. If the addition use type is office, dormitory, fire station, library, office, school, police station, post office, or town hall, the addition must show compliance with the Targeted Performance Compliance (C401.2 Part 2). In this scenario, the existing building shall be excluded from the model so that only the addition is modeled. Surfaces separating the addition from existing building shall be modeled as adiabatic. | M138: Incorporate into the energy model

Sheet Results from eQuest (hidden)
A1: Results from eQuest
C3: =5/0 -> 
A5: Instructions 1. Generate the parms.csv file for the energy model. a. To create this file, create a parametric run by going to Tools > Parametric Runs > Click "OK" > Create Parametric Run > Create Parametric Component > Component Type: Building Parameters > Category: Build Parameters > Keyword: Azimuth > Value: 0.0000 > Done b. Perform simulation and select the baseline and parametric runs 2) Open the parms.csv file and copy the Base Design from the appropriate parms.csv file and paste values into row 9 below. a. If modeling fuels other than natural gas (fuel oil, coal, propane, etc.), be sure to choose therms as the associated energy units on the Compliance Calculations tab in Table 3 as these are the reported units in the Parms.csv file regardless of the fuel type. b. If modeling district HW, district steam, or district chilled water, manual entries will need to be made in Table 3 on the Compliance Calculations tab to capture the usage associated with these meters as it is not included in the Parms.csv file.
L6: Interior lightingElectricitykWh | M6: Interior lightingElectricitykWh | N6: Misc equipmentElectricitykWh | O6: Space heatingElectricitykWh | P6: Space coolingElectricitykWh | Q6: Heat rejectionElectricitykWh | R6: PumpsElectricitykWh | S6: Fans - interior ventilationElectricitykWh | T6: Misc equipmentElectricitykWh | U6: Heat pump supplemental heaterElectricitykWh | V6: Service water heatingElectricitykWh | W6: Exterior lightingElectricitykWh | Y6: Interior lightingElectricitykW | Z6: Interior lightingElectricitykW | AA6: Misc equipmentElectricitykW | AB6: Space heatingElectricitykW | AC6: Space coolingElectricitykW | AD6: Heat rejectionElectricitykW | AE6: PumpsElectricitykW | AF6: Fans - interior ventilationElectricitykW | AG6: Misc equipmentElectricitykW | AH6: Heat pump supplemental heaterElectricitykW | AI6: Service water heatingElectricitykW | AJ6: Exterior lightingElectricitykW | AZ6: Misc equipmentNatural Gastherm | BA6: Space heatingNatural Gastherm | BB6: Space coolingNatural Gastherm | BH6: Service water heatingNatural Gastherm
L7: Electric Usage: | Y7: Non-Coincident Peak Demand: | AK7: Coincident Peak Demand: | AX7: Fuel Usage: | BK7: Source Energy: | BM7: TDV Energy: | BO7: Annual Utility Costs: | BS7: Hours Outside Throttling Range:
A8: Run Type | B8: Internal Loads | C8: Case #s | D8: Short Name | E8: Carry Fwd | F8: Incremental First Cost ($) | G8: Incremental Annual Maint. ($) | H8: Date & Time of Run | I8: File Name | J8: Case Description | K8: SS-D Peak Cooling Coil Load kBtu | L8: PS-E Ambient Lights kWh | M8: PS-E Task Lights kWh | N8: PS-E Misc Equip kWh | O8: PS-E Space Heating kWh | P8: PS-E Space Cooling kWh | Q8: PS-E Heat Reject kWh | R8: PS-E Pumps & Aux kWh | S8: PS-E Ventilation Fans kWh | T8: PS-E Refrig Display kWh | U8: PS-E Heat Pump Supplement kWh | V8: PS-E Domestic Hot Water kWh | W8: PS-E Exterior Usage kWh | X8: PS-E Total kWh | Y8: PS-E Ambient Lights kW | Z8: PS-E Task Lights kW | AA8: PS-E Misc Equip kW | AB8: PS-E Space Heating kW | AC8: PS-E Space Cooling kW | AD8: PS-E Heat Reject kW | AE8: PS-E Pumps & Aux kW | AF8: PS-E Ventilation Fans kW | AG8: PS-E Refrig Display kW | AH8: PS-E Heat Pump Supplement kW | AI8: PS-E Domestic Hot Water kW | AJ8: PS-E Exterior Usage kW | AK8: PS-E Ambient Lights kW | AL8: PS-E Task Lights kW | AM8: PS-E Misc Equip kW | AN8: PS-E Space Heating kW | AO8: PS-E Space Cooling kW | AP8: PS-E Heat Reject kW | AQ8: PS-E Pumps & Aux kW | AR8: PS-E Ventilation Fans kW | AS8: PS-E Refrig Display kW | AT8: PS-E Heat Pump Supplement kW | AU8: PS-E Domestic Hot Water kW | AV8: PS-E Exterior Usage kW | AW8: PS-E Bldg Total kW | AX8: PS-E Ambient Lights Therms | AY8: PS-E Task Lights Therms | AZ8: PS-E Misc Equip Therms | BA8: PS-E Space Heating Therms | BB8: PS-E Space Cooling Therms | BC8: PS-E Heat Reject Therms | BD8: PS-E Pumps & Aux Therms | BE8: PS-E Ventilation Fans Therms | BF8: PS-E Refrig Display Therms | BG8: PS-E Heat Pump Supplement Therms | BH8: PS-E Domestic Hot Water Therms | BI8: PS-E Exterior Usage Therms | BJ8: PS-E Total Therms | BK8: BEPS Bldg Energy Mbtu | BL8: BEPS Bldg EUI kBtu/sf/yr | BM8: TDV1 Bldg Energy TDV-Mbtu | BN8: TDV1 Bldg EUI TDV-kBtu/sf/yr | BO8: ES-E Total Electric $ | BP8: ES-E Total Fuel $ | BQ8: ES-E Electric kWh $ | BR8: ES-E Electric kW $ | BS8: BEPS Zone Outsd Thrtlng Rng % hrs | BT8: BEPS Plant Ld Not Met % hrs | BU8: SS-E Hours Fan On # hrs | BV8: Zone Outsd Thrtlng Rng # hrs | BW8: BEPS Cool Loads Not Met # hrs | BX8: BEPS Heat Loads Not Met # hrs

Sheet Results from EnergyPlus (hidden)
A1: Results from EnergyPlus
C3: =5/0 -> 
A5: Instructions 1) Set the “OutputControl:Table:Style” Unit Conversion to “InchPound” 2) In the EnergyPlus eplustbl.html result file, navigate to the “LEED Summary” report. Output results are found in tables: a. ‘EAp2-4/5. Performance Rating Method Compliance’ contains energy and coincident peak demand for each end-use subcategory. (Copy to Table 1 below) b. ‘EAp2-2. Advisory Messages’ contains occupied unmet hours (Copy to Table 2 below) 3) Map each end-use in Table 1 below to an end-use on the Compliance Calculations tab in column A (choose from the list box). 4) Revise the units in Table 3 on the Compliance Calculations tab for additional fuel to match the units in the output report, if necessary. Tip: If you are having trouble pasting with all values pasting into the same cell. Right click-->click "Paste Special" and paste as "Text"
D8: ElectricitykWh | E8: ElectricityW | F8: Natural Gastherm | G8: Natural GasBtu/h | N8: Additional FuelkBtu | O8: Additional FuelBtu/h | X8: District CoolingTon-Hours | Y8: District Coolington | Z8: District HeatingkBtu | AA8: District HeatingBtu/h
C9: Table 1: EAp2-4/5. Performance Rating Method Compliance | AC9: Table 2: EAp2-2. Advisory Messages
A10: End-use Mapping to Table 3 Column E on the Compliance Calculations tab | D10: Electricity Energy Use [kWh] | E10: Electricity Demand [W] | F10: Natural Gas Energy Use [therm] | G10: Natural Gas Demand [Btu/h] | H10: Gasoline Use [therm] | I10: Gasoline Demand [Btu/h] | J10: Diesel Use [kBtu] | K10: Diesel Demand [Btu/h] | L10: Coal Use [kBtu] | M10: Coal Demand [Btu/h] | N10: Additional Fuel Energy Use [kBtu] | O10: Additional Fuel Demand [Btu/h] | P10: Fuel Oil No 2 Use [kBtu] | Q10: Fuel Oil No 2 Demand [Btu/h] | R10: Propane Use [kBtu] | S10: Propane Demand [Btu/h] | T10: Other Fuel 1 Use [kBtu] | U10: Other Fuel 1 Demand [Btu/h] | V10: Other Fuel 2 Use [kBtu] | W10: Other Fuel 2 Demand [Btu/h] | X10: District Cooling Use [ton-hrs] | Y10: District Cooling Demand [ton] | Z10: District Heating Use [kBtu] | AA10: District Heating Demand [Btu/h] | AD10: Data

Sheet Compliance Calculations
E1: Compliance Calculations
C3: =5/0 -> 
E5: Table of Contents
E6: =Comp_Calcs_Table1_Header -> Table 1: Heating TEDI Calculations
E7: =Comp_Calcs_Table2_Header -> Table 2: Cooling TEDI Calculations
E8: =Comp_Calcs_Table3_Header -> Table 3: Modeled Energy by End-use
E9: =Comp_Calcs_Table4_Header -> Table 4: Unmet Load Hours
E11: Table 1: Heating TEDI Calculations
E12: Instructions 1. Report the annual heating output of all systems in the building that maintain space temperature setpoints and heat ventilation air including the heating coils of the central air systems (e.g., make-up air units and air handling units) and terminal equipment (e.g., fan coils, heat pumps and unit heaters) in column G.
E14: Use Type | F14: Modeled Floor Area (ft2) | G14: ∑Space and Ventilation Heating Output (kBtu) | H14: Heating TEDI (kBtu/ft2) | I14: Heating TEDI Limit (kBtu/ft2) | J14: Heating TEDI Outcome | AA14: Row
E15: =IFERROR(INDEX(TEDI_Space_Use_Long,AA15,),"") ->  | F15: =Proj_Info_Cond_SF -> 0 | H15: =IF(G15="","-",ROUND(G15/F15,1)) -> - | I15: =IFERROR(ROUND(INDEX(TEDI_Heating_Lookup,AA15,),1),"-") -> - | J15: =IF(G15="","In Progress",IF(H15<=I15,"Pass","Fail")) -> In Progress | AA15: =SUMPRODUCT(--(TEDI_Space_Use_Lookup=Proj_Info_Predominant_Type),--(TEDI_Min_Area<Proj_Info_Cond_SF),--(TEDI_Max_Area>Proj_Info_Cond_SF),TEDI_Row) -> 
E17: Table 2: Cooling TEDI Calculations
E18: Instructions 1. Report the annual cooling output of all HVAC systems that maintain space temperature setpoints and cool ventilation air, including but not limited to the cooling coils of the central air systems (e.g., make-up air units, air handling units.) and terminal equipment (e.g., fan coils and heat pumps) in column G.
E20: Use Type | F20: Modeled Floor Area (ft2) | G20: ∑Space and Ventilation Cooling Output (kBtu) | H20: Cooling TEDI (kBtu/ft2) | I20: Cooling TEDI Limit (kBtu/ft2) | J20: Cooling TEDI Outcome | AA20: Row cooling sf | AB20: Row
E21: =IFERROR(INDEX(TEDI_Space_Use_Long,AB21,),"") ->  | F21: =Proj_Info_Cond_SF -> 0 | H21: =IF(G21="","-",ROUND(G21/IFERROR((F21-Proj_Info_Heated_Only_Cooling_TEDI),0),0)) -> - | I21: =IFERROR(ROUND(INDEX(TEDI_Cooling_Lookup,AB21,),0),"-") -> - | J21: =IF(G21="","In Progress",IF(H21<=I21,"Pass","Fail")) -> In Progress | AA21: =SUMPRODUCT(--(TEDI_Space_Use_Lookup=Proj_Info_Predominant_Type),--(TEDI_Min_Area<Proj_Info_Cond_SF-Proj_Info_Heated_Only_Cooling_TEDI),--(TEDI_Max_Area>Proj_Info_Cond_SF-Proj_Info_Heated_Only_Cooling_TEDI),TEDI_Row) ->  | AB21: =AA15 -> 
E23: Table 3: Modeled Energy by End-use
E24: Instructions
E25: =IF(OR(Proj_Info_Sim_Program="eQuest",Proj_Info_Sim_Program="EnergyPlus"),AA27,AB27) -> 1. Enter simulation results manually in Table 3. Information in this table will be used for reviewer quality control. | AA25: Supported | AB25: Not Supported
C27: =5/0 ->  | E27: 1 | F27: 2 | G27: 3 | H27: 4 | AA27: ="1. Populate Table 3 with results from "&Proj_Info_Sim_Program&" simulation reports by navigating to the ""Results from "&Proj_Info_Sim_Program&""" tab and following the instructions on that tab to copy the standard simulation output reports. Information in this table will be used for reviewer quality control." -> 1. Populate Table 3 with results from simulation reports by navigating to the "Results from " tab and following the instructions on that tab to copy the standard simulation output reports. Information in this table will be used for reviewer quality control. | AB27: 1. Enter simulation results manually in Table 3. Information in this table will be used for reviewer quality control. | AF27: Energy Consumption | AH27: Energy Types | AL27: Non-Coincident Peak Demand
E28: End Use | F28: Energy Type | G28: Energy Use Units | H28: Modeled Site Energy Use | AA28: Default Energy Type | AB28: Default Energy Use Units | AC28: Default Energy Demand Units | AD28: Lookup - Consumption | AE28: Lookup - Demand | AF28: eQuest | AG28: EnergyPlus | AH28: Energy Types | AI28: eQuest | AJ28: EnergyPlus | AK28: Software Energy | AL28: eQuest | AM28: EnergyPlus | AN28: kBtu | AO28: kBtu/h | AP28: Lighting kBtu | AQ28: Lighting kBtu/h | AR28: Misc kBtu | AS28: Misc kBtu/h
E29: Interior lighting | F29: =AA29 -> Electricity | G29: =AB29 -> kWh | H29: =IFERROR(IF(Proj_Info_Sim_Program="eQuest",AF29,IF(Proj_Info_Sim_Program="EnergyPlus",AG29,"")),"") ->  | AA29: Electricity | AB29: kWh | AC29: =IF(Proj_Info_Sim_Program="EnergyPlus","W","kW") -> kW | AD29: =E29&AK29&G29 -> Interior lightingElectricitykWh | AE29: Not Used | AF29: =IFERROR(SUMIF(INDEX(Results_eQuest_Lookup,1,),$AD29,INDEX(Results_from_eQuest_Data,,)),0) -> 0 | AG29: =IFERROR(SUMIF(INDEX(Results_from_EnergyPlus_EndUse_Lookup,,1),$E29,INDEX(Results_from_EnergyPlus_Data,,MATCH($AK29&$G29,Results_from_EnergyPlus_Fuel_Lookup,0))),0) -> 0 | AH29: Electricity | AI29: Electricity | AJ29: Electricity | AK29: =IFERROR(INDEX($AI$29:$AJ$41,MATCH(F29,$AH$29:$AH$41,0),IF(Proj_Info_Sim_Program="eQuest",1,2)),"") -> Electricity | AL29: Not Used | AM29: Not Used | AN29: =IFERROR(H29*IFERROR(INDEX(Ref_Energy_Conversion_kBtu,MATCH(F29&G29,INDEX(Ref_Energy_Conversion_kBtu,,Reference!$AE$3),0),Reference!$AF$3),INDEX(Ref_Energy_Conversion_kBtu,MATCH("All"&G29,INDEX(Ref_Energy_Conversion_kBtu,,Reference!$AE$3),0),Reference!$AF$3)),0) -> 0 | AO29: Not Used | AP29: =SUMIF(E29:E42,"Interior lighting",AN29:AN42) -> 0 | AQ29: Not Used | AR29: =SUMIF(E29:E42,"Misc equipment",AN29:AN42) -> 0 | AS29: Not Used
C30: =5/0 ->  | E30: Exterior lighting | F30: Electricity | G30: kWh | AA30: Electricity | AB30: kWh | AC30: =IF(Proj_Info_Sim_Program="EnergyPlus","W","kW") -> kW | AD30: =E30&AK30&G30 -> Exterior lightingElectricitykWh | AE30: Not Used | AF30: 0 | AG30: =IFERROR(SUMIF(INDEX(Results_from_EnergyPlus_EndUse_Lookup,,1),$E30,INDEX(Results_from_EnergyPlus_Data,,MATCH($AK30&$G30,Results_from_EnergyPlus_Fuel_Lookup,0))),0) -> 0 | AH30: Natural Gas | AI30: Natural Gas | AJ30: Natural Gas | AK30: =IFERROR(INDEX($AI$29:$AJ$41,MATCH(F30,$AH$29:$AH$41,0),IF(Proj_Info_Sim_Program="eQuest",1,2)),"") -> Electricity | AL30: Not Used | AM30: Not Used | AN30: =IFERROR(H30*IFERROR(INDEX(Ref_Energy_Conversion_kBtu,MATCH(F30&G30,INDEX(Ref_Energy_Conversion_kBtu,,Reference!$AE$3),0),Reference!$AF$3),INDEX(Ref_Energy_Conversion_kBtu,MATCH("All"&G30,INDEX(Ref_Energy_Conversion_kBtu,,Reference!$AE$3),0),Reference!$AF$3)),0) -> 0 | AO30: Not Used
E31: Space heating | F31: Electricity | G31: kWh | AA31: Electricity | AB31: kWh | AC31: =IF(Proj_Info_Sim_Program="EnergyPlus","W","kW") -> kW | AD31: Space heatingElectricitykWh | AE31: Not Used | AF31: 0 | AG31: 0 | AH31: District Cooling | AJ31: District Cooling | AK31: =IFERROR(INDEX($AI$29:$AJ$41,MATCH(F31,$AH$29:$AH$41,0),IF(Proj_Info_Sim_Program="eQuest",1,2)),"") -> Electricity | AL31: Not Used | AM31: Not Used | AN31: =IFERROR(H31*IFERROR(INDEX(Ref_Energy_Conversion_kBtu,MATCH(F31&G31,INDEX(Ref_Energy_Conversion_kBtu,,Reference!$AE$3),0),Reference!$AF$3),INDEX(Ref_Energy_Conversion_kBtu,MATCH("All"&G31,INDEX(Ref_Energy_Conversion_kBtu,,Reference!$AE$3),0),Reference!$AF$3)),0) -> 0 | AO31: Not Used
E32: Space heating | F32: Natural Gas | G32: therm | AA32: Natural Gas | AB32: therm | AC32: =IF(Proj_Info_Sim_Program="EnergyPlus","Btu/hr","kBtu/hr") -> kBtu/hr | AD32: Space heatingNatural Gastherm | AE32: Not Used | AF32: 0 | AG32: 0 | AH32: District Hot Water | AJ32: District Heating | AK32: =IFERROR(INDEX($AI$29:$AJ$41,MATCH(F32,$AH$29:$AH$41,0),IF(Proj_Info_Sim_Program="eQuest",1,2)),"") -> Natural Gas | AL32: Not Used | AM32: Not Used | AN32: =IFERROR(H32*IFERROR(INDEX(Ref_Energy_Conversion_kBtu,MATCH(F32&G32,INDEX(Ref_Energy_Conversion_kBtu,,Reference!$AE$3),0),Reference!$AF$3),INDEX(Ref_Energy_Conversion_kBtu,MATCH("All"&G32,INDEX(Ref_Energy_Conversion_kBtu,,Reference!$AE$3),0),Reference!$AF$3)),0) -> 0 | AO32: Not Used
E33: Heat pump supplemental heater | F33: Electricity | G33: kWh | AA33: Electricity | AB33: kWh | AC33: =IF(Proj_Info_Sim_Program="EnergyPlus","W","kW") -> kW | AD33: Heat pump supplemental heaterElectricitykWh | AE33: Not Used | AF33: 0 | AG33: 0 | AH33: District Steam | AJ33: District Heating | AK33: =IFERROR(INDEX($AI$29:$AJ$41,MATCH(F33,$AH$29:$AH$41,0),IF(Proj_Info_Sim_Program="eQuest",1,2)),"") -> Electricity | AL33: Not Used | AM33: Not Used | AN33: =IFERROR(H33*IFERROR(INDEX(Ref_Energy_Conversion_kBtu,MATCH(F33&G33,INDEX(Ref_Energy_Conversion_kBtu,,Reference!$AE$3),0),Reference!$AF$3),INDEX(Ref_Energy_Conversion_kBtu,MATCH("All"&G33,INDEX(Ref_Energy_Conversion_kBtu,,Reference!$AE$3),0),Reference!$AF$3)),0) -> 0 | AO33: Not Used
E34: Space cooling | F34: Electricity | G34: kWh | AA34: Electricity | AB34: kWh | AC34: =IF(Proj_Info_Sim_Program="EnergyPlus","W","kW") -> kW | AD34: Space coolingElectricitykWh | AE34: Not Used | AF34: 0 | AG34: 0 | AH34: Fuel Oil / Diesel | AJ34: Additional Fuel | AK34: =IFERROR(INDEX($AI$29:$AJ$41,MATCH(F34,$AH$29:$AH$41,0),IF(Proj_Info_Sim_Program="eQuest",1,2)),"") -> Electricity | AL34: Not Used | AM34: Not Used | AN34: =IFERROR(H34*IFERROR(INDEX(Ref_Energy_Conversion_kBtu,MATCH(F34&G34,INDEX(Ref_Energy_Conversion_kBtu,,Reference!$AE$3),0),Reference!$AF$3),INDEX(Ref_Energy_Conversion_kBtu,MATCH("All"&G34,INDEX(Ref_Energy_Conversion_kBtu,,Reference!$AE$3),0),Reference!$AF$3)),0) -> 0 | AO34: Not Used
E35: Space cooling | F35: Natural Gas | G35: therm | AA35: Natural Gas | AB35: therm | AC35: =IF(Proj_Info_Sim_Program="EnergyPlus","Btu/hr","kBtu/hr") -> kBtu/hr | AD35: Space coolingNatural Gastherm | AE35: Not Used | AF35: 0 | AG35: 0 | AH35: Propane | AJ35: Additional Fuel | AK35: =IFERROR(INDEX($AI$29:$AJ$41,MATCH(F35,$AH$29:$AH$41,0),IF(Proj_Info_Sim_Program="eQuest",1,2)),"") -> Natural Gas | AL35: Not Used | AM35: Not Used | AN35: =IFERROR(H35*IFERROR(INDEX(Ref_Energy_Conversion_kBtu,MATCH(F35&G35,INDEX(Ref_Energy_Conversion_kBtu,,Reference!$AE$3),0),Reference!$AF$3),INDEX(Ref_Energy_Conversion_kBtu,MATCH("All"&G35,INDEX(Ref_Energy_Conversion_kBtu,,Reference!$AE$3),0),Reference!$AF$3)),0) -> 0 | AO35: Not Used
E36: Pumps | F36: Electricity | G36: kWh | AA36: Electricity | AB36: kWh | AC36: =IF(Proj_Info_Sim_Program="EnergyPlus","W","kW") -> kW | AD36: PumpsElectricitykWh | AE36: Not Used | AF36: 0 | AG36: 0 | AH36: Fuel Oil (No. 5 & No.6) | AJ36: Additional Fuel | AK36: =IFERROR(INDEX($AI$29:$AJ$41,MATCH(F36,$AH$29:$AH$41,0),IF(Proj_Info_Sim_Program="eQuest",1,2)),"") -> Electricity | AL36: Not Used | AM36: Not Used | AN36: =IFERROR(H36*IFERROR(INDEX(Ref_Energy_Conversion_kBtu,MATCH(F36&G36,INDEX(Ref_Energy_Conversion_kBtu,,Reference!$AE$3),0),Reference!$AF$3),INDEX(Ref_Energy_Conversion_kBtu,MATCH("All"&G36,INDEX(Ref_Energy_Conversion_kBtu,,Reference!$AE$3),0),Reference!$AF$3)),0) -> 0 | AO36: Not Used
E37: Heat rejection | F37: Electricity | G37: kWh | AA37: Electricity | AB37: kWh | AC37: =IF(Proj_Info_Sim_Program="EnergyPlus","W","kW") -> kW | AD37: Heat rejectionElectricitykWh | AE37: Not Used | AF37: 0 | AG37: 0 | AH37: Kerosene | AJ37: Additional Fuel | AK37: =IFERROR(INDEX($AI$29:$AJ$41,MATCH(F37,$AH$29:$AH$41,0),IF(Proj_Info_Sim_Program="eQuest",1,2)),"") -> Electricity | AL37: Not Used | AM37: Not Used | AN37: =IFERROR(H37*IFERROR(INDEX(Ref_Energy_Conversion_kBtu,MATCH(F37&G37,INDEX(Ref_Energy_Conversion_kBtu,,Reference!$AE$3),0),Reference!$AF$3),INDEX(Ref_Energy_Conversion_kBtu,MATCH("All"&G37,INDEX(Ref_Energy_Conversion_kBtu,,Reference!$AE$3),0),Reference!$AF$3)),0) -> 0 | AO37: Not Used
E38: Fans - interior ventilation | F38: Electricity | G38: kWh | AA38: Electricity | AB38: kWh | AC38: =IF(Proj_Info_Sim_Program="EnergyPlus","W","kW") -> kW | AD38: Fans - interior ventilationElectricitykWh | AE38: Not Used | AF38: 0 | AG38: 0 | AH38: Coal (anthracite) | AJ38: Additional Fuel | AK38: =IFERROR(INDEX($AI$29:$AJ$41,MATCH(F38,$AH$29:$AH$41,0),IF(Proj_Info_Sim_Program="eQuest",1,2)),"") -> Electricity | AL38: Not Used | AM38: Not Used | AN38: =IFERROR(H38*IFERROR(INDEX(Ref_Energy_Conversion_kBtu,MATCH(F38&G38,INDEX(Ref_Energy_Conversion_kBtu,,Reference!$AE$3),0),Reference!$AF$3),INDEX(Ref_Energy_Conversion_kBtu,MATCH("All"&G38,INDEX(Ref_Energy_Conversion_kBtu,,Reference!$AE$3),0),Reference!$AF$3)),0) -> 0 | AO38: Not Used
C39: =5/0 ->  | E39: Service water heating | F39: Electricity | G39: kWh | AA39: Electricity | AB39: kWh | AC39: =IF(Proj_Info_Sim_Program="EnergyPlus","W","kW") -> kW | AD39: Service water heatingElectricitykWh | AE39: Not Used | AF39: 0 | AG39: 0 | AH39: Coal (bituminous) | AJ39: Additional Fuel | AK39: =IFERROR(INDEX($AI$29:$AJ$41,MATCH(F39,$AH$29:$AH$41,0),IF(Proj_Info_Sim_Program="eQuest",1,2)),"") -> Electricity | AL39: Not Used | AM39: Not Used | AN39: =IFERROR(H39*IFERROR(INDEX(Ref_Energy_Conversion_kBtu,MATCH(F39&G39,INDEX(Ref_Energy_Conversion_kBtu,,Reference!$AE$3),0),Reference!$AF$3),INDEX(Ref_Energy_Conversion_kBtu,MATCH("All"&G39,INDEX(Ref_Energy_Conversion_kBtu,,Reference!$AE$3),0),Reference!$AF$3)),0) -> 0 | AO39: Not Used
C40: =5/0 ->  | E40: Service water heating | F40: Natural Gas | G40: therm | AA40: Natural Gas | AB40: therm | AC40: =IF(Proj_Info_Sim_Program="EnergyPlus","Btu/hr","kBtu/hr") -> kBtu/hr | AD40: Service water heatingNatural Gastherm | AE40: Not Used | AF40: 0 | AG40: 0 | AH40: Coke | AJ40: Additional Fuel | AK40: =IFERROR(INDEX($AI$29:$AJ$41,MATCH(F40,$AH$29:$AH$41,0),IF(Proj_Info_Sim_Program="eQuest",1,2)),"") -> Natural Gas | AL40: Not Used | AM40: Not Used | AN40: =IFERROR(H40*IFERROR(INDEX(Ref_Energy_Conversion_kBtu,MATCH(F40&G40,INDEX(Ref_Energy_Conversion_kBtu,,Reference!$AE$3),0),Reference!$AF$3),INDEX(Ref_Energy_Conversion_kBtu,MATCH("All"&G40,INDEX(Ref_Energy_Conversion_kBtu,,Reference!$AE$3),0),Reference!$AF$3)),0) -> 0 | AO40: Not Used
E41: Misc equipment | F41: Electricity | G41: kWh | AA41: Electricity | AB41: kWh | AC41: =IF(Proj_Info_Sim_Program="EnergyPlus","W","kW") -> kW | AD41: Misc equipmentElectricitykWh | AE41: Not Used | AF41: 0 | AG41: 0 | AH41: Wood | AJ41: Additional Fuel | AK41: =IFERROR(INDEX($AI$29:$AJ$41,MATCH(F41,$AH$29:$AH$41,0),IF(Proj_Info_Sim_Program="eQuest",1,2)),"") -> Electricity | AL41: Not Used | AM41: Not Used | AN41: =IFERROR(H41*IFERROR(INDEX(Ref_Energy_Conversion_kBtu,MATCH(F41&G41,INDEX(Ref_Energy_Conversion_kBtu,,Reference!$AE$3),0),Reference!$AF$3),INDEX(Ref_Energy_Conversion_kBtu,MATCH("All"&G41,INDEX(Ref_Energy_Conversion_kBtu,,Reference!$AE$3),0),Reference!$AF$3)),0) -> 0 | AO41: Not Used
C42: =5/0 ->  | E42: Misc equipment | F42: Natural Gas | G42: therm | AA42: Natural Gas | AB42: therm | AC42: =IF(Proj_Info_Sim_Program="EnergyPlus","Btu/hr","kBtu/hr") -> kBtu/hr | AD42: Misc equipmentNatural Gastherm | AE42: Not Used | AF42: 0 | AG42: 0 | AK42: =IFERROR(INDEX($AI$29:$AJ$41,MATCH(F42,$AH$29:$AH$41,0),IF(Proj_Info_Sim_Program="eQuest",1,2)),"") -> Natural Gas | AL42: Not Used | AM42: Not Used | AN42: =IFERROR(H42*IFERROR(INDEX(Ref_Energy_Conversion_kBtu,MATCH(F42&G42,INDEX(Ref_Energy_Conversion_kBtu,,Reference!$AE$3),0),Reference!$AF$3),INDEX(Ref_Energy_Conversion_kBtu,MATCH("All"&G42,INDEX(Ref_Energy_Conversion_kBtu,,Reference!$AE$3),0),Reference!$AF$3)),0) -> 0 | AO42: Not Used
E44: Table 4: Unmet Load Hours
E45: Instructions
E46: =IF(OR(Proj_Info_Sim_Program="eQuest",Proj_Info_Sim_Program="EnergyPlus"),AA49,AB49) -> 1. Enter unmet load hours manually in Table 4.
E48: Unmet Loads Modeled | AA48: Supported | AB48: Not Supported
E49: Number of heating loads not met | F49: =IF(Proj_Info_Sim_Program="eQuest",AA51,IF(Proj_Info_Sim_Program="EnergyPlus",AB51,"")) ->  | AA49: ="1. Populate Table 4 with results from "&Proj_Info_Sim_Program&" simulation reports by navigating to the ""Results from "&Proj_Info_Sim_Program&""" tab and following the instructions on that tab to copy the standard simulation output reports." -> 1. Populate Table 4 with results from simulation reports by navigating to the "Results from " tab and following the instructions on that tab to copy the standard simulation output reports. | AB49: 1. Enter unmet load hours manually in Table 4.
E50: Number of cooling loads not met | F50: =IF(Proj_Info_Sim_Program="eQuest",AA52,IF(Proj_Info_Sim_Program="EnergyPlus",AB52,"")) ->  | AA50: eQuest | AB50: EnergyPlus
E51: Total | F51: =IFERROR(IF(F49+F50=0,"",F49+F50),"") ->  | AA51: ='Results from eQuest'!$BX$9 -> 0 | AB51: ='Results from EnergyPlus'!$AD$11 -> 0
AA52: ='Results from eQuest'!$BW$9 -> 0 | AB52: ='Results from EnergyPlus'!$AD$12 -> 0

Sheet Quality Control Checks
E1: Quality Control Checks
C3: =5/0 -> 
E5: Table of Contents
E6: =QC_Table1_Header -> Table 1: Modeled vs Standardized Inputs Energy Consumption
E7: =QC_Table3_Header -> Table 2: Schedules and Loads Guideline Supplement Checks
E8: =QC_Table4_Header -> Table 3: Modeled vs Benchmark Energy Use Intensity (EUI) by End-Use
E10: This tab performs automatic quality control checks for modeled unmet loads, lighting, and miscellaneous equipment based on the information reported in Table 3 and Table 4 on the Compliance Calculations tab and the thermal blocks reported in Table 2 on the Project Information tab. Table 3 on this tab also performs quality control checks on the modeled energy use intensity (EUI) by end use compared to the models used to establish the TEDI targets.
E12: Table 1: Modeled vs Standardized Inputs Energy Consumption
E13: - | G13: Annual Lighting Use [kWh] | I13: Annual Miscellaneous Use [kWh]
E14: Modeled | G14: =IFERROR(Modeled_Lighting_kBtu/3.412,"0") -> 0 | I14: =IFERROR(Modeled_Misc_kBtu/3.412,"0") -> 0
E15: Standardized Inputs | G15: =Proj_Info_Lighting_kWh -> 0 | I15: =Proj_Info_Misc_kWh -> 0
E17: Table 2: Schedules and Loads Guideline Supplement Checks
E18: Instructions 1. Review flagged QC checks. Update the model and/or inputs in this tool as appropriate to address the "Fail" outcomes before submitting the package for review to the AHJ.
E20: # | F20: Review Check | K20: Review Outcome | M20: Required Action
E21: 1 | F21: Unmet load hours do not exceed 300 of the 8760 hours simulated. | K21: =IF(Comp_Calcs_Unmet_Load_Hours="","In Progress",IF(Comp_Calcs_Unmet_Load_Hours>300,"Fail","Pass")) -> In Progress | M21: =IF(K21="In Progress","Report the unmet load hours in Table 4 on the Compliance Calculations tab.",IF(K21="Fail","Revise the energy model so that the unmet load hours do not exceed 300.","None")) -> Report the unmet load hours in Table 4 on the Compliance Calculations tab. | AA21: Margin Less | AB21: Margin Greater | AC21: % diff from standardized inputs | AD21: Pass/Fail/Review Inputs
E22: 2 | F22: Modeled interior lighting energy consumption aligns with the Schedules and Loads Guideline Supplement. | K22: =IF(OR(G14=0,G15=0),"In Progress",AD22) -> In Progress | M22: =IF(K22="In Progress","Report the modeled interior lighting consumption on the Compliance Calculations tab and report the thermal block types and areas on the Project Information tab.",IF(K22="Review Inputs", "Modeled interior lighting consumption is lower than expected based on the Schedules and Loads Guideline Supplement. However, this may be due to daylighting controls. Please review model inputs related to interior lighting.",IF(K22="Fail","Modeled interior lighting consumption is higher than expected based on the Schedules and Loads Guideline Supplement. Please review and revise model inputs related to interior lighting.","None"))) -> Report the modeled interior lighting consumption on the Compliance Calculations tab and report the thermal block types and areas on the Project Information tab. | AA22: 0.15 | AB22: 0.03 | AC22: =(G15-G14)/G15 ->  | AD22: =IF(AC22>0,IF(ABS(AC22)>AA22,"Review Inputs","Pass"),IF(ABS(AC22)>AB22,"Fail","Pass")) -> 
E23: 3 | F23: Modeled miscellaneous equipment energy consumption aligns with the Schedules and Loads Guideline Supplement. | K23: =IF(OR(I14=0,I15=0),"In Progress",AD23) -> In Progress | M23: =IF(K23="In Progress","Report the modeled miscellaneous equipment energy consumption on the Compliance Calculations tab and report the thermal block types and areas on the Project Information tab.",IF(K23="Fail",IF(AC23<0,"Modeled miscellaneous equipment energy consumption is higher than expected based on the Schedules and Loads Guideline Supplement. Please review and revise model inputs related to miscellaneous equipment. "&"Note that gas-fired appliances (stoves and dryers) should be excluded from the model per Section 7 of the Simulation Guidelines.","Modeled miscellaneous equipment energy consumption is lower than expected based on the Schedules and Loads Guideline Supplement. Please review and revise model inputs related to miscellaneous equipment."),"None")) -> Report the modeled miscellaneous equipment energy consumption on the Compliance Calculations tab and report the thermal block types and areas on the Project Information tab. | AA23: 0.03 | AB23: 0.03 | AC23: =(I15-I14)/I15 ->  | AD23: =IF(ABS(AC23)>AA23,"Fail","Pass") -> 
E25: Notes Please include applicable notes as needed.
E28: Table 3: Modeled vs Benchmark Energy Use Intensity (EUI) by End-Use
E29: Instructions 1. If prompted, select the sample model benchmark. Note that there are no sample models for offices or schools between 75,000-sf and 125,000-sf. 2. Review flagged end uses indicated with blue cell fill. Update the model and/or inputs in this tool as appropriate to address the flags before submitting the package for review to the AHJ, or provide an explanation for the flagged end uses. Note that flagged end uses do not indicate an issue with the model; it only means that the modeled parameters for that end use should be reviewed and verified since they differ significantly (by more than 25%) from the sample models.
AA30: Default | AB30: Model Row | AC30: % Difference Flag
E31: Sample Model Benchmark | I31: =IFERROR(IF(INDEX(Sample_Models_EUIs,MATCH(Comp_Calcs_Use_Type,INDEX(Sample_Models_EUIs,,Reference!$M$3),0),Reference!$N$3)=0,"<Please select benchmark>",INDEX(Sample_Models_EUIs,MATCH(Comp_Calcs_Use_Type,INDEX(Sample_Models_EUIs,,Reference!$M$3),0),Reference!$N$3)),"Please complete the Project Information tab") -> Please complete the Project Information tab | AA31: =IF(INDEX(Sample_Models_EUIs,MATCH(Comp_Calcs_Use_Type,INDEX(Sample_Models_EUIs,,Reference!$M$3),0),Reference!$N$3)=0,"<Please select benchmark>",INDEX(Sample_Models_EUIs,MATCH(Comp_Calcs_Use_Type,INDEX(Sample_Models_EUIs,,Reference!$M$3),0),Reference!$N$3)) ->  | AB31: =MATCH($I$31,INDEX(Sample_Models_EUIs,,Reference!$N$3),0) ->  | AC31: 0.25
E33: End Use | I33: Site Energy Use Intensity (kBtu/sf/yr) | O33: Modeler Explanation
I34: Modeled | K34: Benchmark | M34: % Difference | AA34: End Use Column
E35: Interior lighting | I35: =IFERROR(SUMIF(Comp_Calcs_End_Uses,E35,Comp_Calcs_kBtu)/Proj_Info_Cond_SF,"-") -> - | K35: =IFERROR(INDEX(Sample_Models_EUIs,$AB$31,AA35),"-") -> - | M35: =IFERROR(IF(OR(I35=0,K35=0),"-",(K35-I35)/K35),"-") -> - | O35: =IFERROR(IF(ABS(M35)<=$AC$31,"N/A",""),"N/A") -> N/A | AA35: =Reference!O3 -> 3
E36: Space heating | I36: - | K36: =IFERROR(INDEX(Sample_Models_EUIs,$AB$31,AA36),"-") -> - | M36: =IFERROR(IF(OR(I36=0,K36=0),"-",(K36-I36)/K36),"-") -> - | O36: =IFERROR(IF(ABS(M36)<=$AC$31,"N/A",""),"N/A") -> N/A | AA36: =Reference!P3 -> 4
E37: Heat pump supplemental heater | I37: - | K37: =IFERROR(INDEX(Sample_Models_EUIs,$AB$31,AA37),"-") -> - | M37: - | O37: N/A | AA37: =Reference!Q3 -> 5
E38: Space cooling | I38: - | K38: =IFERROR(INDEX(Sample_Models_EUIs,$AB$31,AA38),"-") -> - | M38: - | O38: N/A | AA38: =Reference!R3 -> 6
E39: Pumps | I39: - | K39: =IFERROR(INDEX(Sample_Models_EUIs,$AB$31,AA39),"-") -> - | M39: - | O39: N/A | AA39: =Reference!S3 -> 7
E40: Heat rejection | I40: - | K40: =IFERROR(INDEX(Sample_Models_EUIs,$AB$31,AA40),"-") -> - | M40: - | O40: N/A | AA40: =Reference!T3 -> 8
E41: Fans - interior ventilation | I41: - | K41: =IFERROR(INDEX(Sample_Models_EUIs,$AB$31,AA41),"-") -> - | M41: - | O41: N/A | AA41: =Reference!U3 -> 9
E42: Misc equipment | I42: - | K42: =IFERROR(INDEX(Sample_Models_EUIs,$AB$31,AA42),"-") -> - | M42: - | O42: N/A | AA42: =Reference!V3 -> 10

Sheet Submittal Checklist
E1: Submittal Checklist
C3: =5/0 -> 
E5: Table of Contents
E6: =Submittal_Checklist_Table1_Header -> Table 1: Submittal Checklist
E7: =Submittal_Checklist_Report_Gen_Header -> TEDI Tool Compliance Report Generation
E9: This tab lists documentation that must be submitted to the authority having jurisdiction to document compliance in addition to the completed TEDI Compliance Tool. The requirements are based on Massachusetts Stretch Energy Code and Attachment C. In addition to the standard items that must be provided for all projects, the supporting information is requested where appropriate based on the project information reported on other tabs.
E11: Table 1: Submittal Checklist
E12: Instructions 1. Once the required documentation has been submitted, change the "Submitted?" column to "Yes" and report the file or document name where the required documentation is found.
E14: # | F14: Required Documentation | M14: Submitted? | O14: File or document name where information is found, and locations of the information within the document if applicable
E15: 1 | F15: Modeler resume documenting years of full-time modeling experience. | M15: No
E16: 2 | F16: Completed COMcheck submittal: COMcheck envelope, lighting, and mechanical compliance certificates, and plan review inspection checklist. | M16: No
E17: 3 | F17: PE stamped thermal bridging calculations following Attachment A. | M17: No
E18: 4 | F18: Maintenance and system commissioning plan in accordance with C408. | M18: No
E19: 5 | F19: Average ventilation rate calculations, similar to what is required by Section C103.2 #16. | M19: No
C20: =IF(Proj_Info_External_Calcs="Yes",1,5/0) ->  | E20: 6 | F20: Supporting calculations for external calculations in accordance with 90.1 2019 Section G2.5 (a) - (e). | M20: No
C21: =5/0 ->  | E21: 7 | F21: Completed mandatory requirements checklist. | M21: No
E22: 8 | F22: All applicable sections of this TEDI Tool are fully filled out. | M22: No
E23: 9 | F23: TEDI Tool compliance report (see "TEDI Tool Compliance Report Generation" below Table 1). | M23: No
E24: 10 | F24: A site plan showing all adjacent buildings and topography that may shade the proposed building, with the estimated height or number of stories. | M24: No
E25: 11 | F25: Design documens that the submittal is based on. | M25: No
E26: 12 | F26: A diagram showing the thermal blocks used in the computer simulation. | M26: No
E27: 13 | F27: An explanation of any significant modeling assumptions, such as systems and components that could not be explicitly modeled in the simulation tool and required work-arounds. | M27: No
E28: 14 | F28: Fenestration documentation in accordance with C402.4.6. | M28: No
E29: 15 | F29: An explanation of any error messages noted in the simulation program output. | M29: No
E30: 16 | F30: Addressed all quality control checks in Table 3 on the "Quality Controls Checks" tab in this TEDI Tool. | M30: No
E31: 17 | F31: Air leakage testing reports in accordance with Section C402.5.2. | M31: No
E32: Simulation Files and Reports
C33: =IF(Proj_Info_Sim_Program="eQuest",1,5/0) ->  | E33: eQuest | F33: <project name>.SIM file with the complete set of simulation reports. | M33: No
C34: =IF(Proj_Info_Sim_Program="EnergyPlus",1,5/0) ->  | E34: EnergyPlus | F34: Complete set of simulation reports in the HTML format (See Annex 1 of the Appendix C: Targeted Performance Simulation Guidelines for instructions). | M34: No
C35: =IF(Proj_Info_Sim_Program="IESVE",1,5/0) ->  | E35: IESVE | F35: Room Loads Report | M35: No
F36: Zone Loads Report | M36: No
F37: Space Loads & Ventilation Report | M37: No
F38: System Loads Report | M38: No
F39: Energy Model Output Report | M39: No
F40: Unmet Hours Report | M40: No
F41: Detailed Simulation Report | M41: No
E43: TEDI Tool Compliance Report Generation
E44: Instructions 1. Click the button below to generate a PDF report of this TEDI Compliance Tool. The PDF report will appear in the folder where this workbook is located.

Sheet Revision Log
B1: Revision Log
B4: Version #, the changes listed are included in the associated version number | C4: Date Changes Made | D4: Description of Revisions
B5: 1.1 | C5: 2024-12-09 | D5: 1. Fixed typo on the Project Information tab that had occupant density in CFM/sf instead of sf/person. 2. Adjusted allowable miscellaneous equipment deviation before flagging to be 3%+- the standardized inputs, instead of 15%, on the Quality Control Checks tab. 3. Adjusted allowable lighting consumption deviation before flagging to be 3% greater or 15% less (to account for daylight dimming controls) than the standardized inputs on the Quality Control Checks tab. 4. Fixed formatting bug in Table 3 on the Quality Control Checks tab that was only highlighting end uses that were less than the benchmark by the allowable margin. The formatting was updated so that positive and negative deviations from the benchmark above the allowable margin are flagged. 5. Fixed bug that was not accounting for school summer schedules for lighting and miscellaneous equipment when calculating the standardized inputs in Table 1 on the Quality Control Checks tab. The schedules now use the schedules in R3 of the Schedule and Loads Guideline Supplement, including summer schedules for schools.

Sheet Reference (hidden)
CK1: Project Phase | CL1: Simulation Software | CM1: Yes or No | CN1: Building Area Types | CO1: HVAC_Modeling_Method | CP1: HVAC_Modeling_Method_Default_Only | CQ1: Thermal_Block_Options | CR1: eQuest_Version | CS1: EnergyPlus_Version | CT1: IESVE_Version | CU1: Other_Version | CV1: Weather_File_Options | CW1: Yes_No_NA_Blank | CX1: End_Use_List | CY1: Checkmark_NA_Blank | CZ1: Energy Types | DA1: Sample_Model_Types
CK2: Proj_Phase | CL2: Sim_Software | CM2: Yes_No | CN2: Bldg_Area_Type | CO2: HVAC_Modeling_Method | CP2: HVAC_Modeling_Method_Default_Only | CQ2: Thermal_Block_Options | CR2: eQuest_Version | CS2: EnergyPlus_Version | CT2: IESVE_Version | CU2: Other_Version | CV2: Weather_File_Options | CW2: Yes_No_NA_Blank | CX2: End_Use_List | CY2: Checkmark_NA_Blank | CZ2: Energy_Types | DA2: Sample_Model_Types
B3: Default HVAC Parameters | C3: 1 | D3: 2 | E3: 3 | F3: 4 | G3: 5 | H3: 6 | I3: 7 | L3: kBtu/sf | M3: 1 | N3: 2 | O3: 3 | P3: 4 | Q3: 5 | R3: 6 | S3: 7 | T3: 8 | U3: 9 | V3: 10 | X3: 1 | Y3: 2 | Z3: 3 | AC3: 1 | AD3: 2 | AE3: 3 | AF3: 4 | AG3: 5 | AY3: 1 | AZ3: 2 | BA3: 3 | BB3: 4 | BC3: 5 | BD3: 6 | BE3: 7 | BF3: 8 | BG3: 9 | BM3: 1 | BN3: 2 | BO3: 3 | BP3: 4 | BQ3: 5 | BR3: 6 | BS3: 7 | BV3: Table C407.1.1.5 Thermal Energy Demand Intensity (TEDI) Limits | CE3: Thermal Blocks | CF3: Thermal Block Building Catergory | CG3: Building Area Type | CH3: Space Use Category for TEDI | CK3: 90% Construction Documents | CL3: eQuest | CM3: Yes | CN3: Office | CO3: Default HVAC System Configuration | CP3: Default HVAC System Configuration | CQ3: =_xlfn.UNIQUE(_xlfn.VSTACK(IFERROR(_xlfn._xlws.FILTER($CE$4:$CE$12,$CF$4:$CF$12=Proj_Info_Predominant_Type,""),""))) ->  | CR3: 3.65+ DOE2.3 | CS3: 9.3.0+ | CT3: 2021.4.0.0+ | CU3: Other | CV3: USA_MA_Boston-Logan.Intl.AP.725090_TMYx.2004-2018 | CW3: Yes | CX3: Interior lighting | CY3: ✓ | CZ3: Electricity | DA3: Large Office >= 125,000-sf
B4: Row | C4: Use Type | D4: Heating/Cooling System Type | E4: System Type | F4: Fan Control | G4: Cooling Type | H4: Heating Type | I4: Fan Power of Heating/Cooling Eqp | L4: Row | M4: Use Type | N4: Model | O4: Interior lighting | P4: Space heating | Q4: Heat pump supplemental heater | R4: Space cooling | S4: Pumps | T4: Heat rejection | U4: Fans - interior ventilation | V4: Misc equipment | X4: Demand_Units | Y4: Demand_Units_Long | Z4: Demand_Multiplier_to_MBH | AC4: Energy_Type | AD4: Energy_Units | AE4: Energy_Units_Lookup | AF4: Energy_Content_kBtu_Unit | AG4: Energy_Units_Long | AK4: Electricity | AL4: Natural Gas | AM4: District Cooling | AN4: District Hot Water | AO4: District Steam | AP4: Fuel Oil / Diesel | AQ4: Propane | AR4: Fuel Oil (No. 5 & No.6) | AS4: Kerosene | AT4: Coal (anthracite) | AU4: Coal (bituminous) | AV4: Coke | AW4: Wood | AY4: Schedule | AZ4: Lighting EFLH | BA4: Misc EFLH (D, F, G <= 75000) | BB4: Misc EFLH (D, F, G > 75000) | BC4: Misc EFLH for Project | BD4: Peak lighting fraction | BE4: Peak misc fraction (D, F, G <= 75000) | BF4: Peak misc fraction (D, F, G > 75000) | BG4: Peak misc project | BI4: Row | BJ4: Minimum Floor Area | BK4: Maximum Floor Area | BL4: Thermal block Type | BM4: Schedule index | BN4: misc loads (w/sf) | BO4: lighting power (W/sf) | BP4: ventilation rate (CFM/sf) | BQ4: occupant density (sf/person) | BR4: sensible occupant heat gain (Btu/h-person) | BS4: latent occupant heat gain (Btu/h-person) | BU4: Row | BV4: Use Type | BW4: Heating TEDI (kBtu/sf-yr) | BX4: Cooling TEDI (kBtu/sf-yr) | BY4: Heating TEDI Calculated | BZ4: Cooling TEDI Calculated | CA4: Minimum Floor Area | CB4: Maximum Floor Area | CC4: Space Use Category | CE4: Residential Building: Residential | CF4: Residential | CG4: Office | CH4: Misc | CK4: 100% Construction Documents | CL4: EnergyPlus | CM4: No | CN4: Fire Station | CO4: As-designed HVAC Systems | CR4: Other | CS4: Other | CT4: Other | CV4: Other - AHJ approved (describe below) | CW4: No | CX4: Exterior lighting | CY4: N/A | CZ4: Natural Gas | DA4: Small Office <= 75,000-sf
B5: 1 | C5: Office, fire station, library, police station, post office, town hall >= 125,000-sf | D5: System 2 FCU | E5: 4-Pipe fan coil units with CHW and HW | F5: Constant Volume | G5: Chilled water | H5: Hot-water electric boiler | I5: 0.00024 | L5: 1 | M5: Office, fire station, library, police station, post office, town hall >= 125,000-sf | N5: Large Office >= 125,000-sf | O5: 4.4514098 | P5: 1.03710404 | Q5: 0 | R5: 2.683932925 | S5: 2.521396875 | T5: 1.353129983 | U5: 3.251186038 | V5: 11.4895115 | X5: kW | Y5: Kilowatt | Z5: 3.412 | AC5: All | AD5: kWh | AE5: =AC5&AD5 -> AllkWh | AF5: 3.412 | AG5: Kilowatt hour | AK5: kWh | AL5: therm | AM5: Btu | AN5: Btu | AO5: Lbs. | AP5: Liters | AQ5: Liters | AR5: Liters | AS5: Liters | AT5: Lbs. | AU5: Lbs. | AV5: Lbs. | AW5: Lbs. | AY5: A | AZ5: 854.1 | BA5: 2117 | BB5: 2117 | BC5: =BB5 -> 2117 | BD5: 0.217 | BE5: 0.5 | BF5: 0.5 | BG5: =BF5 -> 0.5 | BI5: 1 | BJ5: 75000 | BK5: 10000000 | BL5: Residential Building: Residential | BM5: A | BN5: 1.74 | BO5: 0.41 | BP5: 0.096 | BQ5: 245 | BR5: 257 | BS5: 166 | BU5: 1 | BV5: Office, fire station, library, police station, post office, town hall >= 125,000-sf | BW5: 1.5 | BX5: 23 | BY5: =BW5 -> 1.5 | BZ5: =BX5 -> 23 | CA5: 125000 | CB5: 10000000 | CC5: Misc | CE5: Residential Building: Supporting Spaces | CF5: Residential | CG5: Fire Station | CH5: Misc | CK5: As-built Construction Documents | CL5: IESVE | CN5: Library | CW5: N/A | CX5: Space heating | CZ5: District Cooling | DA5: Large School >= 125,000-sf
B6: 2 | C6: Office, fire station, library, police station, post office,town hall between 75,000 and 125,000-sf | D6: System 2 FCU | E6: 4-Pipe fan coil units with CHW and HW | F6: Constant Volume | G6: Chilled water | H6: Hot-water electric boiler | I6: 0.00024 | L6: 2 | M6: Office, fire station, library, police station, post office,town hall between 75,000 and 125,000-sf | O6: 5.274630526 | P6: 0.3633504646 | Q6: 0 | R6: 3.640375783 | S6: 0 | T6: 0 | U6: 2.625828594 | V6: 10.11061596 | X6: MW | Y6: Megawatt | Z6: 3412 | AC6: All | AD6: MWh | AE6: =AC6&AD6 -> AllMWh | AF6: 3412 | AG6: Megawatt hour | AK6: MWh | AL6: cf | AM6: kBtu | AN6: kBtu | AO6: kLbs. | AP6: Gallons | AQ6: Gallons | AR6: Gallons | AS6: Gallons | AT6: kLbs. | AU6: kLbs. | AV6: kLbs. | AW6: Tons | AY6: B | AZ6: 6361.512 | BA6: 3285 | BB6: 3285 | BC6: =BB6 -> 3285 | BD6: 0.7262 | BE6: 0.9 | BF6: 0.9 | BG6: =BF6 -> 0.9 | BI6: 2 | BJ6: 75000 | BK6: 10000000 | BL6: Residential Building: Supporting Spaces | BM6: B | BN6: 0.2 | BO6: 0.46 | BP6: 0.078 | BQ6: 1000 | BR6: 257 | BS6: 166 | BU6: 2 | BV6: Office, fire station, library, police station, post office,town hall between 75,000 and 125,000-sf | BW6: 4 - 0.00002 * Area (sf) | BX6: 18 + 0.00004 * Area (sf) | BY6: =4-0.00002*Proj_Info_Cond_SF -> 4 | BZ6: =18+0.00004*(Proj_Info_Cond_SF-Proj_Info_Heated_Only_Cooling_TEDI) ->  | CA6: 75000 | CB6: 125000 | CC6: Misc | CE6: Residential Building: Nonresidential | CF6: Residential | CG6: Library | CH6: Misc | CK6: Other - Please describe below | CL6: Other (Describe in notes section below) | CN6: Police Station | CX6: Heat pump supplemental heater | CZ6: District Hot Water | DA6: Small School <= 75,000-sf
B7: 3 | C7: Office, fire station, library, police station, post office, town hall <= 75,000-sf | D7: System 1 ASHP | E7: Air source heat pump | F7: Constant Volume | G7: Direct expansion | H7: Electric heat pump | I7: 0.00024 | L7: 3 | M7: Office, fire station, library, police station, post office, town hall <= 75,000-sf | N7: Small Office <= 75,000-sf | O7: 5.274630526 | P7: 0.3633504646 | Q7: 0 | R7: 3.640375783 | S7: 0 | T7: 0 | U7: 2.625828594 | V7: 10.11061596 | X7: Btu/hr | Y7: British thermal unit per hour | Z7: 0.001 | AC7: All | AD7: kBtu | AE7: AllkBtu | AF7: 1 | AG7: (British thermal unit) x 1,000 | AK7: Btu | AL7: ccf | AM7: MMBtu | AN7: MMBtu | AO7: Mlbs. | AP7: Btu | AQ7: Btu | AR7: Btu | AS7: Btu | AT7: MLbs. | AU7: MLbs | AV7: MLbs | AW7: Btu | AY7: C | AZ7: 4380 | BA7: 3285 | BB7: 3285 | BC7: 3285 | BD7: 0.8 | BE7: 0.740776699 | BF7: 0.740776699 | BG7: 0.740776699 | BI7: 3 | BJ7: 75000 | BK7: 10000000 | BL7: Residential Building: Nonresidential | BM7: C | BN7: 1.15 | BO7: 0.66 | BP7: 0.11 | BQ7: 200 | BR7: 257 | BS7: 166 | BU7: 3 | BV7: Office, fire station, library, police station, post office, town hall <= 75,000-sf | BW7: 2.5 | BX7: 21 | BY7: =BW7 -> 2.5 | BZ7: =BX7 -> 21 | CA7: 0 | CB7: 75000 | CC7: Misc | CE7: K-12 Cafeteria | CF7: K-12 | CG7: Police Station | CH7: Misc | CN7: Post Office | CX7: Space cooling | CZ7: District Steam | DA7: Multifamily Tower
B8: 4 | C8: K-12 School >= 125,000-sf | D8: System 2 FCU | E8: 4-Pipe fan coil units with CHW and HW | F8: Constant Volume | G8: Chilled water | H8: Hot-water electric boiler | I8: 0.00024 | L8: 4 | M8: K-12 School >= 125,000-sf | N8: Large School >= 125,000-sf | O8: 5.76220708 | P8: 2.166884361 | Q8: 0 | R8: 3.367924468 | S8: 4.699073412 | T8: 1.43432602 | U8: 5.558429132 | V8: 9.741788091 | X8: W | Y8: Watt | Z8: =Z5/1000 -> 0.003412 | AC8: All | AD8: therm | AE8: Alltherm | AF8: 100 | AG8: therm | AK8: kBtu | AL8: kcf | AM8: therm | AN8: therm | AO8: Btu | AP8: kBtu | AQ8: kBtu | AR8: kBtu | AS8: kBtu | AT8: Tons | AU8: Tons | AV8: Tons | AW8: kBtu | AY8: D | AZ8: 2775.5544 | BA8: 3699.624 | BB8: 2933.04 | BC8: =IF(Proj_Info_Cond_SF>75000,BB8,BA8) -> 3699.624 | BD8: 0.9 | BE8: 0.95 | BF8: 0.74 | BG8: =IF(Proj_Info_Cond_SF>75000,BF8,BE8) -> 0.95 | BI8: 4 | BJ8: 0 | BK8: 75000 | BL8: Residential Building: Residential | BM8: A | BN8: 1.74 | BO8: 0.41 | BP8: 0.096 | BQ8: 245 | BR8: 257 | BS8: 166 | BU8: 4 | BV8: K-12 School >= 125,000-sf | BW8: 2.2 | BX8: 12 | BY8: =BW8 -> 2.2 | BZ8: =BX8 -> 12 | CA8: 125000 | CB8: 10000000 | CC8: K-12 | CE8: K-12 Gymnasium | CF8: K-12 | CG8: Post Office | CH8: Misc | CN8: Town Hall | CX8: Pumps | CZ8: Fuel Oil / Diesel | DA8: Multifamily Podium
B9: 5 | C9: K-12 School between 75,000 and 125,000-sf | D9: System 2 FCU | E9: 4-Pipe fan coil units with CHW and HW | F9: Constant Volume | G9: Chilled water | H9: Hot-water electric boiler | I9: 0.00024 | L9: 5 | M9: K-12 School between 75,000 and 125,000-sf | O9: 5.543173794 | P9: 0.830986243 | Q9: 0 | R9: 3.804157178 | S9: 0 | T9: 0 | U9: 5.278364331 | V9: 15.58675257 | X9: kBtu/hr | Y9: (British thermal unit per hour) x 1,000 | Z9: 1 | AC9: All | AD9: MMBtu | AE9: AllMMBtu | AF9: 1000 | AG9: (British thermal unit) x 1,000,000 | AK9: MMBtu | AL9: Mcf | AM9: Ton-Hours | AN9: kWh | AO9: kBtu | AP9: MMBtu | AQ9: MMBtu | AR9: MMBtu | AS9: MMBtu | AT9: Btu | AU9: Btu | AV9: Btu | AW9: MMBtu | AY9: E | AZ9: 3623.5704 | BA9: 1016.4 | BB9: 1016.4 | BC9: =BB9 -> 1016.4 | BD9: 0.9 | BE9: 0.25 | BF9: 0.25 | BG9: =BF9 -> 0.25 | BI9: 5 | BJ9: 0 | BK9: 75000 | BL9: Residential Building: Supporting Spaces | BM9: B | BN9: 0.2 | BO9: 0.46 | BP9: 0.078 | BQ9: 1000 | BR9: 257 | BS9: 166 | BU9: 5 | BV9: K-12 School between 75,000 and 125,000-sf | BW9: 2.7 - 0.000004 * Area (sf) | BX9: 32 - 0.00016 * Area (sf) | BY9: =2.7-0.000004*Proj_Info_Cond_SF -> 2.7 | BZ9: =32-0.00016*(Proj_Info_Cond_SF-Proj_Info_Heated_Only_Cooling_TEDI) ->  | CA9: 75000 | CB9: 125000 | CC9: K-12 | CE9: K-12 Auditorium | CF9: K-12 | CG9: Town Hall | CH9: Misc | CN9: K-12 School | CX9: Heat rejection | CZ9: Propane | DA9: Small Multifamily
B10: 6 | C10: K-12 School <= 75,000-sf | D10: System 1 ASHP | E10: Air source heat pump | F10: Constant Volume | G10: Direct expansion | H10: Electric heat pump | I10: 0.00024 | L10: 6 | M10: K-12 School <= 75,000-sf | N10: Small School <= 75,000-sf | O10: 5.543173794 | P10: 0.830986243 | Q10: 0 | R10: 3.804157178 | S10: 0 | T10: 0 | U10: 5.278364331 | V10: 15.58675257 | X10: MMBtu/hr | Y10: (British thermal unit per hour) x 1,000,000 | Z10: 1000 | AC10: All | AD10: MJ | AE10: AllMJ | AF10: 0.948 | AG10: (Joules) x 1,000,000 | AK10: Ton-Hours | AL10: Btu | AM10: kWh | AN10: MWh | AO10: MMBtu | AP10: therm | AQ10: therm | AR10: therm | AS10: therm | AT10: kBtu | AU10: kBtu | AV10: kBtu | AW10: therm | AY10: F | AZ10: 3215.3304 | BA10: 3699.624 | BB10: 2658 | BC10: =IF(Proj_Info_Cond_SF>75000,BB10,BA10) -> 3699.624 | BD10: 0.765 | BE10: 0.95 | BF10: 0.67 | BG10: =IF(Proj_Info_Cond_SF>75000,BF10,BE10) -> 0.95 | BI10: 6 | BJ10: 0 | BK10: 75000 | BL10: Residential Building: Nonresidential | BM10: C | BN10: 1.15 | BO10: 0.66 | BP10: 0.11 | BQ10: 200 | BR10: 257 | BS10: 166 | BU10: 6 | BV10: K-12 School <= 75,000-sf | BW10: 2.4 | BX10: 20 | BY10: =BW10 -> 2.4 | BZ10: =BX10 -> 20 | CA10: 0 | CB10: 75000 | CC10: K-12 | CE10: K-12 School | CF10: K-12 | CG10: K-12 School | CH10: K-12 | CN10: Residential multifamily | CX10: Fans - interior ventilation | CZ10: Fuel Oil (No. 5 & No.6)
B11: 7 | C11: Residential multifamily and dormitory >= 125,000-sf | D11: System 3 WSHP | E11: Water source heat pump | F11: Constant Volume | G11: Direct expansion | H11: Electric heat pump, condenser water loop served by electric boiler | I11: 0.00017 | L11: 7 | M11: Residential multifamily and dormitory >= 125,000-sf | N11: Multifamily Tower | O11: 2.754293639 | P11: 2.566691534 | Q11: 0 | R11: 4.54828416 | S11: 0.154043127 | T11: 0.04902382242 | U11: 2.794375363 | V11: 11.27746003 | X11: therm/hr | Y11: therm per hour | Z11: 100 | AC11: Electricity | AD11: Ton-Hours | AE11: ElectricityTon-Hours | AF11: 12 | AG11: Ton Hours | AL11: kBtu | AM11: MWh | AO11: kWh | AP11: kWh | AQ11: kWh | AR11: kWh | AS11: kWh | AT11: MMBtu | AU11: MMBtu | AV11: MMBtu | AW11: kWh | AY11: G | AZ11: 3215.3304 | BA11: 3699.624 | BB11: 2658 | BC11: =IF(Proj_Info_Cond_SF>75000,BB11,BA11) -> 3699.624 | BD11: 0.765 | BE11: 0.95 | BF11: 0.67 | BG11: =IF(Proj_Info_Cond_SF>75000,BF11,BE11) -> 0.95 | BI11: 7 | BJ11: 75000 | BK11: 10000000 | BL11: K-12 Cafeteria | BM11: E | BN11: =IF(Proj_Info_K12_Cafe_sf>9040,(140120+((Proj_Info_K12_Cafe_sf-9040)*2.33))/Proj_Info_K12_Cafe_sf,15.5) -> 15.5 | BO11: =IF(Proj_Info_K12_Cafe_sf>9040,(4700+((Proj_Info_K12_Cafe_sf-9040)*0.48))/Proj_Info_K12_Cafe_sf,0.52) -> 0.52 | BP11: =IF(Proj_Info_K12_Cafe_sf>9040,(10761+((Proj_Info_K12_Cafe_sf-9040)*0.45))/Proj_Info_K12_Cafe_sf,1.19) -> 1.19 | BQ11: =IF(Proj_Info_K12_Cafe_sf>9040,(122075+((Proj_Info_K12_Cafe_sf-9040)*58.9))/Proj_Info_K12_Cafe_sf,13.5) -> 13.5 | BR11: 250 | BS11: 159.5 | BU11: 7 | BV11: Residential multifamily and dormitory >= 125,000-sf | BW11: 2.8 | BX11: 22 | BY11: =BW11 -> 2.8 | BZ11: =BX11 -> 22 | CA11: 125000 | CB11: 10000000 | CC11: Residential | CE11: Office, Fire Station, Library, Police Station, Post Office, Town Hall, and Other | CF11: Misc | CG11: Residential multifamily | CH11: Residential | CN11: Dormitory | CX11: Service water heating | CZ11: Kerosene
B12: 8 | C12: Residential multifamily and dormitory between 75,000 and 125,000-sf | D12: System 1 ASHP | E12: Air source heat pump | F12: Constant Volume | G12: Direct expansion | H12: Electric heat pump | I12: 0.00012 | L12: 8 | M12: Residential multifamily and dormitory between 75,000 and 125,000-sf | N12: Multifamily Podium | O12: 2.188867471 | P12: 1.203719668 | Q12: 0 | R12: 2.011477218 | S12: 0 | T12: 0 | U12: 2.824976078 | V12: 11.54058252 | X12: ton | Y12: ton | Z12: 12 | AC12: District Cooling | AD12: Ton-Hours | AE12: District CoolingTon-Hours | AF12: 12 | AG12: Ton Hours | AL12: MMBtu | AO12: MWh | AP12: MWh | AQ12: MWh | AR12: MWh | AS12: MWh | AT12: therm | AU12: therm | AV12: therm | AW12: MWh | AY12: H | AZ12: 2135.092 | BA12: 4493.9 | BB12: 4493.9 | BC12: =BB12 -> 4493.9 | BD12: 0.612 | BE12: 0.9 | BF12: 0.9 | BG12: =BF12 -> 0.9 | BI12: 8 | BJ12: 75000 | BK12: 10000000 | BL12: K-12 Gymnasium | BM12: F | BN12: 0.46 | BO12: 0.85 | BP12: 0.5 | BQ12: 143 | BR12: 250 | BS12: 159.5 | BU12: 8 | BV12: Residential multifamily and dormitory between 75,000 and 125,000-sf | BW12: 3.8 - 0.000008 * Area (sf) | BX12: 4.5 + 0.00014 * Area (sf) | BY12: =3.8-0.000008*Proj_Info_Cond_SF -> 3.8 | BZ12: =4.5*0.00014*(Proj_Info_Cond_SF-Proj_Info_Heated_Only_Cooling_TEDI) ->  | CA12: 75000 | CB12: 125000 | CC12: Residential | CE12: Office, Fire Station, Library, Police Station, Post Office, Town Hall, and Other | CF12: Other | CG12: Dormitory | CH12: Residential | CN12: All Other (Describe in notes) | CX12: Misc equipment | CZ12: Coal (anthracite)
B13: 9 | C13: Residential multifamily and dormitory <= 75,000-sf | D13: System 1 ASHP | E13: Air source heat pump | F13: Constant Volume | G13: Direct expansion | H13: Electric heat pump | I13: 0.00012 | L13: 9 | M13: Residential multifamily and dormitory <= 75,000-sf | N13: Small Multifamily | O13: 2.558935341 | P13: 1.28979432 | Q13: 0 | R13: 2.220798749 | S13: 0 | T13: 0 | U13: 2.822431762 | V13: 11.27021826 | AC13: All | AD13: Btu | AE13: AllBtu | AF13: =1/1000 -> 0.001 | AG13: British thermal unit | AL13: kWh | AT13: kWh | AU13: kWh | AV13: kWh | AY13: I | AZ13: 2776.5648 | BA13: 4711.74 | BB13: 4711.74 | BC13: =BB13 -> 4711.74 | BD13: 0.612 | BE13: 1 | BF13: 1 | BG13: =BF13 -> 1 | BI13: 9 | BJ13: 75000 | BK13: 10000000 | BL13: K-12 Auditorium | BM13: G | BN13: 0.46 | BO13: 0.61 | BP13: 1.26 | BQ13: 6.7 | BR13: 250 | BS13: 159.5 | BU13: 9 | BV13: Residential multifamily and dormitory <= 75,000-sf | BW13: 3.2 | BX13: 15 | BY13: =BW13 -> 3.2 | BZ13: =BX13 -> 15 | CA13: 0 | CB13: 75000 | CC13: Residential | CG13: All Other (Describe in notes) | CH13: Other | CZ13: Coal (bituminous)
B14: 10 | C14: All other >= 125,000-sf | D14: System 2 FCU | E14: 4-Pipe fan coil units with CHW and HW | F14: Constant Volume | G14: Chilled water | H14: Hot-water electric boiler | I14: 0.00024 | L14: 10 | M14: All other >= 125,000-sf | N14: =N5 -> Large Office >= 125,000-sf | O14: =O5 -> 4.4514098 | P14: =P5 -> 1.03710404 | Q14: 0 | R14: 2.683932925 | S14: 2.521396875 | T14: 1.353129983 | U14: 3.251186038 | V14: 11.4895115 | AC14: Natural Gas | AD14: cf | AE14: Natural Gascf | AF14: 1.029 | AG14: cubic feet | AL14: MWh | AT14: MWh | AU14: MWh | AV14: MWh | AY14: * Calculated based on R3 of supplement with no holidays per guidelines | BI14: 10 | BJ14: 75000 | BK14: 10000000 | BL14: K-12 School | BM14: D | BN14: 0.89 | BO14: 0.63 | BP14: 0.38 | BQ14: 66 | BR14: 250 | BS14: 159.5 | BU14: 10 | BV14: All other >= 125,000-sf | BW14: 1.5 | BX14: 23 | BY14: =BW14 -> 1.5 | BZ14: =BX14 -> 23 | CA14: 125000 | CB14: 10000000 | CC14: Other | CZ14: Coke
B15: 11 | C15: All other between 75,000 and 125,0000-sf | D15: System 2 FCU | E15: 4-Pipe fan coil units with CHW and HW | F15: Constant Volume | G15: Chilled water | H15: Hot-water electric boiler | I15: 0.00024 | L15: 11 | M15: All other between 75,000 and 125,0000-sf | O15: =O6 -> 5.274630526 | P15: 0.3633504646 | Q15: 0 | R15: 3.640375783 | S15: 0 | T15: 0 | U15: 2.625828594 | V15: 10.11061596 | AC15: Natural Gas | AD15: ccf | AE15: Natural Gasccf | AF15: 102.9 | AG15: (cubic feet) x 100 | AK15: W | AL15: W | AM15: W | AN15: W | AO15: W | AP15: W | AQ15: W | AR15: W | AS15: W | AT15: W | AU15: W | AV15: W | AW15: W | BI15: 11 | BJ15: 0 | BK15: 75000 | BL15: K-12 Cafeteria | BM15: E | BN15: =IF(Proj_Info_K12_Cafe_sf>5200,(61350+((Proj_Info_K12_Cafe_sf-5200)*4.16))/Proj_Info_K12_Cafe_sf,11.8) -> 11.8 | BO15: =IF(Proj_Info_K12_Cafe_sf>5200,(3016+((Proj_Info_K12_Cafe_sf-5200)*0.48))/Proj_Info_K12_Cafe_sf,0.58) -> 0.58 | BP15: =IF(Proj_Info_K12_Cafe_sf>5200,(5667+((Proj_Info_K12_Cafe_sf-5200)*0.484))/Proj_Info_K12_Cafe_sf,1.09) -> 1.09 | BQ15: =IF(Proj_Info_K12_Cafe_sf>5200,(72273+((Proj_Info_K12_Cafe_sf-5200)*53.5))/Proj_Info_K12_Cafe_sf,13.9) -> 13.9 | BR15: 250 | BS15: 159.5 | BU15: 11 | BV15: All other between 75,000 and 125,0000-sf | BW15: 4 - 0.00002 * Area (sf) | BX15: 18 + 0.00004 * Area (sf) | BY15: =4-0.00002*Proj_Info_Cond_SF -> 4 | BZ15: =18+0.00004*(Proj_Info_Cond_SF-Proj_Info_Heated_Only_Cooling_TEDI) ->  | CA15: 75000 | CB15: 125000 | CC15: Other | CZ15: Wood
B16: 12 | C16: All other <= 75,000-sf | D16: System 1 ASHP | E16: Air source heat pump | F16: Constant Volume | G16: Direct expansion | H16: Electric heat pump | I16: 0.00024 | L16: 12 | M16: All other <= 75,000-sf | N16: =N7 -> Small Office <= 75,000-sf | O16: =O7 -> 5.274630526 | P16: 0.3633504646 | Q16: 0 | R16: 3.640375783 | S16: 0 | T16: 0 | U16: 2.625828594 | V16: 10.11061596 | AC16: Natural Gas | AD16: kcf | AE16: Natural Gaskcf | AF16: 1029 | AG16: (cubic feet) x 1,000 | AK16: kW | AL16: kW | AM16: kW | AN16: kW | AO16: kW | AP16: kW | AQ16: kW | AR16: kW | AS16: kW | AT16: kW | AU16: kW | AV16: kW | AW16: kW | BI16: 12 | BJ16: 0 | BK16: 75000 | BL16: K-12 Gymnasium | BM16: F | BN16: 0.46 | BO16: 0.85 | BP16: 0.5 | BQ16: 143 | BR16: 250 | BS16: 159.5 | BU16: 12 | BV16: All other <= 75,000-sf | BW16: 2.5 | BX16: 21 | BY16: =BW16 -> 2.5 | BZ16: =BX16 -> 21 | CA16: 0 | CB16: 75000 | CC16: Other
AC17: Natural Gas | AD17: Mcf | AE17: Natural GasMcf | AF17: 1029000 | AG17: (cubic feet) x 1,000,000 | AK17: MW | AL17: MW | AM17: MW | AN17: MW | AO17: MW | AP17: MW | AQ17: MW | AR17: MW | AS17: MW | AT17: MW | AU17: MW | AV17: MW | AW17: MW | BI17: 13 | BJ17: 0 | BK17: 75000 | BL17: K-12 Auditorium | BM17: G | BN17: 0.46 | BO17: 0.61 | BP17: 1.26 | BQ17: 6.7 | BR17: 250 | BS17: 159.5
C18: Fan power in gym, cafeteria, auditorium is 0.00050 kW/CFM for heating/cooling equipment | M18: All Other = offices | AC18: District Steam | AD18: Lbs. | AE18: District SteamLbs. | AF18: 1.194 | AG18: Pounds (District Steam) | AK18: Btu/hr | AL18: Btu/hr | AM18: Btu/hr | AN18: Btu/hr | AO18: Btu/hr | AP18: Btu/hr | AQ18: Btu/hr | AR18: Btu/hr | AS18: Btu/hr | AT18: Btu/hr | AU18: Btu/hr | AV18: Btu/hr | AW18: Btu/hr | BI18: 14 | BJ18: 0 | BK18: 75000 | BL18: K-12 School | BM18: D | BN18: 1.14 | BO18: 0.63 | BP18: 0.41 | BQ18: 60 | BR18: 250 | BS18: 159.5
M19: EUIs were calculated based on the "FINAL" EnergyPlus results for the sample models on the DOER website on January 29, 2024. | AC19: District Steam | AD19: kLbs. | AE19: District SteamkLbs. | AF19: 1194 | AG19: (Pounds) x 1,000 | AK19: kBtu/hr | AL19: kBtu/hr | AM19: kBtu/hr | AN19: kBtu/hr | AO19: kBtu/hr | AP19: kBtu/hr | AQ19: kBtu/hr | AR19: kBtu/hr | AS19: kBtu/hr | AT19: kBtu/hr | AU19: kBtu/hr | AV19: kBtu/hr | AW19: kBtu/hr | BI19: 15 | BJ19: 75000 | BK19: 10000000 | BL19: Office, Fire Station, Library, Police Station, Post Office, Town Hall, and Other | BM19: H | BN19: 0.75 | BO19: 0.64 | BP19: 0.18 | BQ19: 205 | BR19: 250 | BS19: 159.5
AC20: District Steam | AD20: Mlbs. | AE20: District SteamMlbs. | AF20: 1194000 | AG20: (Pounds) x 1,000,000 | AK20: MMBtu/hr | AL20: MMBtu/hr | AM20: MMBtu/hr | AN20: MMBtu/hr | AO20: MMBtu/hr | AP20: MMBtu/hr | AQ20: MMBtu/hr | AR20: MMBtu/hr | AS20: MMBtu/hr | AT20: MMBtu/hr | AU20: MMBtu/hr | AV20: MMBtu/hr | AW20: MMBtu/hr | BI20: 16 | BJ20: 0 | BK20: 75000 | BL20: Office, Fire Station, Library, Police Station, Post Office, Town Hall, and Other | BM20: I | BN20: 0.63 | BO20: 0.64 | BP20: 0.18 | BQ20: 179 | BR20: 250 | BS20: 159.5
AC21: Fuel Oil / Diesel | AD21: Liters | AE21: Fuel Oil / DieselLiters | AF21: =138.6905/3.846104 -> 36.05999734 | AK21: ton | AL21: ton | AM21: ton | AN21: ton | AO21: ton | AP21: ton | AQ21: ton | AR21: ton | AS21: ton | AT21: ton | AU21: ton | AV21: ton | AW21: ton
AC22: Fuel Oil / Diesel | AD22: Gallons | AE22: Fuel Oil / DieselGallons | AF22: 138.6905 | AL22: therm/hr | AM22: therm/hr | AN22: therm/hr | AO22: therm/hr | AP22: therm/hr | AQ22: therm/hr | AR22: therm/hr | AS22: therm/hr | AT22: therm/hr | AU22: therm/hr | AV22: therm/hr | AW22: therm/hr
AC23: Fuel Oil (No. 5 & No.6) | AD23: Liters | AE23: Fuel Oil (No. 5 & No.6)Liters | AF23: =149.69/3.846104 -> 38.9199044
AC24: Fuel Oil (No. 5 & No.6) | AD24: Gallons | AE24: Fuel Oil (No. 5 & No.6)Gallons | AF24: 149.69
AC25: Propane | AD25: Gallons | AE25: PropaneGallons | AF25: 91.65
AC26: Propane | AD26: Liters | AE26: PropaneLiters | AF26: =91.65/3.846 -> 23.8299532
AC27: Coal (anthracite) | AD27: Lbs. | AE27: Coal (anthracite)Lbs. | AF27: 12.545 | AG27: Pounds (Anthracite Coal)
AC28: Coal (anthracite) | AD28: kLbs. | AE28: Coal (anthracite)kLbs. | AF28: 12545 | AG28: (Pounds Anthracite Coal) x 1,000
AC29: Coal (anthracite) | AD29: MLbs. | AE29: Coal (anthracite)MLbs. | AF29: 12545000 | AG29: (Pounds Anthracite Coal) x 1,000,000
AC30: Coal (anthracite) | AD30: Tons | AE30: Coal (anthracite)Tons | AF30: 24800 | AG30: Tons (Anthracite Coal)
AC31: Coal (bituminous) | AD31: Lbs. | AE31: Coal (bituminous)Lbs. | AF31: 12.465 | AG31: Pounds (Bituminous Coal)
AC32: Coal (bituminous) | AD32: kLbs. | AE32: Coal (bituminous)kLbs. | AF32: 12465 | AG32: (Pounds Bituminous Coal) x 1,000
AC33: Coal (bituminous) | AD33: MLbs | AE33: Coal (bituminous)MLbs | AF33: 12465000 | AG33: (Pounds Bituminous Coal) x 1,000,000
AC34: Coal (bituminous) | AD34: Tons | AE34: Coal (bituminous)Tons | AF34: 24930 | AG34: Tons (Bituminous Coal)
AC35: Coke | AD35: Lbs. | AE35: CokeLbs. | AF35: 12.4 | AG35: Pounds (coke)
AC36: Coke | AD36: kLbs. | AE36: CokekLbs. | AF36: 12400 | AG36: (Pounds coke) x 1,000
AC37: Coke | AD37: MLbs | AE37: CokeMLbs | AF37: 12400000 | AG37: (Pounds coke) x 1,000,000
AC38: Coke | AD38: Tons | AE38: CokeTons | AF38: 24800 | AG38: Tons (coke)
AC39: Wood | AD39: Lbs. | AE39: WoodLbs. | AF39: 7.69 | AG39: Pounds (wood)
AC40: Wood | AD40: Tons | AE40: WoodTons | AF40: 15380 | AG40: Tons (wood)
AC41: All | AD41: MMBtu | AE41: AllMMBtu | AF41: 1000 | AG41: (British thermal unit) x 1,000,000
AC42: Kerosene | AD42: Gallons | AE42: KeroseneGallons | AF42: 138.6905
AC43: Kerosene | AD43: Liters | AE43: KeroseneLiters | AF43: =138.6905/3.846104 -> 36.05999734

Sheet Ref_Instructions (hidden)
A1: Tab Name | B1: Button name | C1: Find | D1: Title | E1: 2023 TEDI | F1: Blank | G1: Blank | H1: Height | I1: Width | J1: Height | K1: Width | L1: Left | M1: Top | O1: 1 | P1: Column
A2: Project Information | B2: Button 1 | C2: =A2&B2 -> Project InformationButton 1 | D2: Project Information Help | E2: Targeted Performance Simulation Guidelines, Section 3 The following simulation programs are pre-approved: eQUEST version 3.65 or higher using DOE2.3 engine, EnergyPlus version 9.3.0 or higher, IESVE version 2021.4.0.0 or higher. eQuest version 3.65 or higher may be used with DOE2.2 engine for projects that do not include HVAC systems and designs that require workarounds in DOE2.2 but are explicitly supported in DOE2.3, such as variable refrigerant flow heat pumps and dedicated outdoor air systems. | H2: 330 | I2: 368.25 | J2: 249.75 | K2: 342 | L2: =I2-98 -> 270.25 | M2: =H2-65 -> 265
A3: Project Information | B3: Button 2 | C3: =A3&B3 -> Project InformationButton 2 | D3: Project Information Help | E3: Targeted Performance Simulation Guidelines, Section 4a Projects shall use the MAStretch 2023 weather file included in the Schedules and Loads Guidelines Supplement Package unless permitted by the AHJ to use a local weather file. | H3: 330 | I3: 368.25 | J3: 249.75 | K3: 342 | L3: =I3-98 -> 270.25 | M3: =H3-65 -> 265
A4: Project Information | B4: Button 3 | C4: Project InformationButton 3 | D4: Project Information Help | E4: The building area types are used to determine the applicable category from Table C407.1.1.5 in order to calculate the heating and cooling TEDI limits. The building area types selected will also affect the thermal block options in Table 2. If selecting "All Others" please describe the building area type in the notes section below Table 1. | H4: 330 | I4: 368.25 | J4: 249.75 | K4: 342 | L4: 270.25 | M4: 265
A5: Project Information | B5: Button 4 | C5: Project InformationButton 4 | D5: Project Information Help | E5: Targeted Performance Simulation Guidelines, Section 5 Report the enclosed heated and cooled floor area of the building area type. Report spaces that are both directly and indirectly conditioned. Do not report unenclosed spaces. | H5: 330 | I5: 368.25 | J5: 249.75 | K5: 342 | L5: 270.25 | M5: 265
A6: Project Information | B6: Button 5 | C6: Project InformationButton 5 | D6: Project Information Help | E6: Targeted Performance Simulation Guidelines, Section 5 Report the enclosed heated-only floor area of the building area type. Report spaces that are both directly and indirectly conditioned. Do not report unenclosed spaces. If modeling as-designed HVAC systems per Sections 13.1 and 13.3 and heated only thermal zone floor area accounts for more than 10% of the modeled floor area then the heated only floor area shall be subtracted from the modeled floor area for the purposes of determining the Cooling TEDI. | H6: 330 | I6: 368.25 | J6: 249.75 | K6: 342 | L6: 270.25 | M6: 265
A7: Project Information | B7: Button 6 | C7: Project InformationButton 6 | D7: Project Information Help | E7: Targeted Performance Simulation Guidelines, Section 1 An unconditioned space is an enclosed space within a building that is not a conditioned space. | H7: 330 | I7: 368.25 | J7: 249.75 | K7: 342 | L7: 270.25 | M7: 265
A8: Project Information | B8: Button 7 | C8: Project InformationButton 7 | D8: Project Information Help | E8: Targeted Performance Simulation Guidelines, Section 13.1 The heating, ventilation and air-conditioning systems, their components and controls shall be modeled as follows: a. Buildings and areas within the building for which HVAC systems are not designed and are not shown on the construction documents shall be modeled with the default HVAC systems following Sections 13.2 and 13.4. b. Buildings and areas within the building for which HVAC systems are designed shall be modeled following either of the following options: 1. With the specified systems following Sections 13.3 and 13.4 2. With the default HVAC systems following Section 13.1(a). The selected approach shall be followed for the entire project. | H8: 330 | I8: 368.25 | J8: 249.75 | K8: 342 | L8: =I8-98 -> 270.25 | M8: =H8-65 -> 265
A9: Project Information | B9: Button 8 | C9: Project InformationButton 8 | D9: Project Information Help | E9: Targeted Performance Simulation Guidelines, Section 11 Each thermal block shall be modeled using the standardized assumptions prescribed in Table 1-6 in the Schedules and Loads Guidelines Supplement. The schedule indices shown in this table are described in the Schedules and Loads Guidelines Supplement and shall be used in the energy model. | H9: 330 | I9: 368.25 | J9: 249.75 | K9: 342 | L9: =I9-98 -> 270.25 | M9: =H9-65 -> 265
A10: Instructions | B10: Button 1 | C10: InstructionsButton 1 | D10: Instructions Help | E10: Help text will display in a box like this. | H10: 330 | I10: 368.25 | J10: 249.75 | K10: 342 | L10: 270.25 | M10: 265
A11: Compliance Calculations | B11: Button 1 | C11: Compliance CalculationsButton 1 | D11: Compliance Calculations Help | E11: ∑Space and Ventilation Heating Output (kBtu) = the annual heating output of all systems in the building that maintain space temperature setpoints and heat ventilation air including the heating coils of the central air systems (e.g., make-up air units and air handling units) and terminal equipment (e.g., fan coils, heat pumps and unit heaters). | H11: 330 | I11: 368.25 | J11: 249.75 | K11: 342 | L11: 270.25 | M11: 265
A12: Compliance Calculations | B12: Button 2 | C12: =A12&B12 -> Compliance CalculationsButton 2 | D12: Compliance Calculations Help | E12: ∑Space and Ventilation Cooling Output (kBtu) = the annual cooling output of all HVAC systems that maintain space temperature setpoints and cool ventilation air, including but not limited to the cooling coils of the central air systems (e.g., make-up air units, air handling units.) and terminal equipment (e.g., fan coils and heat pumps). | H12: 330 | I12: 368.25 | J12: 249.75 | K12: 342 | L12: 270.25 | M12: 265
H13: 330 | I13: 368.25 | J13: 249.75 | K13: 342 | L13: 270.25 | M13: 265
H14: 330 | I14: 368.25 | J14: 249.75 | K14: 342 | L14: 270.25 | M14: 265
H15: 330 | I15: 368.25 | J15: 249.75 | K15: 342 | L15: 270.25 | M15: 265
H16: 330 | I16: 368.25 | J16: 249.75 | K16: 342 | L16: 270.25 | M16: 265
H17: 330 | I17: 368.25 | J17: 249.75 | K17: 342 | L17: 270.25 | M17: 265
H18: 330 | I18: 368.25 | J18: 249.75 | K18: 342 | L18: 270.25 | M18: 265
H19: 330 | I19: 368.25 | J19: 249.75 | K19: 342 | L19: 270.25 | M19: 265
H20: 330 | I20: 368.25 | J20: 249.75 | K20: 342 | L20: 270.25 | M20: 265
H21: 330 | I21: 368.25 | J21: 249.75 | K21: 342 | L21: 270.25 | M21: 265
H22: 330 | I22: 368.25 | J22: 249.75 | K22: 342 | L22: 270.25 | M22: 265
H23: 330 | I23: 368.25 | J23: 249.75 | K23: 342 | L23: 270.25 | M23: 265
H24: 330 | I24: 368.25 | J24: 249.75 | K24: 342 | L24: 270.25 | M24: 265
H25: 330 | I25: 368.25 | J25: 249.75 | K25: 342 | L25: 270.25 | M25: 265
H26: 330 | I26: 368.25 | J26: 249.75 | K26: 342 | L26: 270.25 | M26: 265
H27: 330 | I27: 368.25 | J27: 249.75 | K27: 342 | L27: 270.25 | M27: 265
H28: 330 | I28: 368.25 | J28: 249.75 | K28: 342 | L28: 270.25 | M28: 265
H29: 330 | I29: 368.25 | J29: 249.75 | K29: 342 | L29: 270.25 | M29: 265
H30: 330 | I30: 368.25 | J30: 249.75 | K30: 342 | L30: 270.25 | M30: 265
H31: 330 | I31: 368.25 | J31: 249.75 | K31: 342 | L31: 270.25 | M31: 265
H32: 330 | I32: 368.25 | J32: 249.75 | K32: 342 | L32: 270.25 | M32: 265
H33: 330 | I33: 368.25 | J33: 249.75 | K33: 342 | L33: 270.25 | M33: 265
H34: 330 | I34: 368.25 | J34: 249.75 | K34: 342 | L34: 270.25 | M34: 265
H35: 330 | I35: 368.25 | J35: 249.75 | K35: 342 | L35: 270.25 | M35: 265
H36: 330 | I36: 368.25 | J36: 249.75 | K36: 342 | L36: 270.25 | M36: 265
H37: 330 | I37: 368.25 | J37: 249.75 | K37: 342 | L37: 270.25 | M37: 265
H38: 330 | I38: 368.25 | J38: 249.75 | K38: 342 | L38: 270.25 | M38: 265
H39: 330 | I39: 368.25 | J39: 249.75 | K39: 342 | L39: 270.25 | M39: 265
H40: 330 | I40: 368.25 | J40: 249.75 | K40: 342 | L40: 270.25 | M40: 265
H41: 330 | I41: 368.25 | J41: 249.75 | K41: 342 | L41: 270.25 | M41: 265
H42: 330 | I42: 368.25 | J42: 249.75 | K42: 342 | L42: 270.25 | M42: 265
H43: 330 | I43: 368.25 | J43: 249.75 | K43: 342 | L43: 270.25 | M43: 265
H44: 330 | I44: 368.25 | J44: 249.75 | K44: 342 | L44: 270.25 | M44: 265
H45: 330 | I45: 368.25 | J45: 249.75 | K45: 342 | L45: 270.25 | M45: 265
H46: 330 | I46: 368.25 | J46: 249.75 | K46: 342 | L46: 270.25 | M46: 265
H47: 330 | I47: 368.25 | J47: 249.75 | K47: 342 | L47: 270.25 | M47: 265
H48: 330 | I48: 368.25 | J48: 249.75 | K48: 342 | L48: 270.25 | M48: 265
H49: 330 | I49: 368.25 | J49: 249.75 | K49: 342 | L49: 270.25 | M49: 265
H50: 330 | I50: 368.25 | J50: 249.75 | K50: 342 | L50: 270.25 | M50: 265
H51: 330 | I51: 368.25 | J51: 249.75 | K51: 342 | L51: 270.25 | M51: 265
H52: 330 | I52: 368.25 | J52: 249.75 | K52: 342 | L52: 270.25 | M52: 265
